BODY,BODY NAME,DATE,TRANSACTION NUMBER,THEIR REF,CATEGORY,AMOUNT,SUPPLIER NAME,SUPPLIER CODE,EXPENSE AREA,EXPENSE TYPE,EXPENSE CODE,
http://statistics.data.gov.uk/id/local-authority/12UE,Huntingdonshire District Council,07/04/2016,187176,554838,5,"2,592.00",Environmental Scientifics Group Ltd,CR416941,Air Quality,Equipment,500,
http://statistics.data.gov.uk/id/local-authority/12UE,Huntingdonshire District Council,07/04/2016,186844,1230268258,5,2.4,Orange Airtime,CR455799,Animal Welfare,Telephone &Mobile Phonecharges,240,
http://statistics.data.gov.uk/id/local-authority/12UE,Huntingdonshire District Council,14/04/2016,187703,60166538/522256,5,809,Central England Co-Operative Ltd,CR401059,Burials Under Health Acts,Funerals And Graves,717,
http://statistics.data.gov.uk/id/local-authority/12UE,Huntingdonshire District Council,07/04/2016,186836,JBC/27889/4663/,5,628.92,J Breheny Contractors Ltd,CR000314,Bus Shelters,Sitework,359,
http://statistics.data.gov.uk/id/local-authority/12UE,Huntingdonshire District Council,07/04/2016,187360,JBC/27940/4663/,5,580.39,J Breheny Contractors Ltd,CR000314,Bus Shelters,Sitework,359,
http://statistics.data.gov.uk/id/local-authority/12UE,Huntingdonshire District Council,07/04/2016,187333,JBC/27945/4663/,5,532.26,J Breheny Contractors Ltd,CR000314,Bus Shelters,Sitework,359,
http://statistics.data.gov.uk/id/local-authority/12UE,Huntingdonshire District Council,21/04/2016,186698,JBC/27896/4663,5,507.42,J Breheny Contractors Ltd,CR000314,Bus Shelters,Sitework,359,
http://statistics.data.gov.uk/id/local-authority/12UE,Huntingdonshire District Council,07/04/2016,187357,JBC/27939/4663/,5,503.21,J Breheny Contractors Ltd,CR000314,Bus Shelters,Sitework,359,
http://statistics.data.gov.uk/id/local-authority/12UE,Huntingdonshire District Council,07/04/2016,187328,JBC/27944/4663/,5,366.79,J Breheny Contractors Ltd,CR000314,Bus Shelters,Sitework,359,
http://statistics.data.gov.uk/id/local-authority/12UE,Huntingdonshire District Council,07/04/2016,187198,11458902300,5,313.95,E-On Energy,CR416430,Bus Shelters,Electricity,420,
http://statistics.data.gov.uk/id/local-authority/12UE,Huntingdonshire District Council,07/04/2016,186847,GFL1771HDC,5,606,G Ferrara Ltd,CR478949,Bus Shelters,Building Cleaning,440,
http://statistics.data.gov.uk/id/local-authority/12UE,Huntingdonshire District Council,06/04/2016,187104,2016/022,5,695.04,Primesight  Ltd,CR132710,Bus Shelters,Building Cleaning,440,
http://statistics.data.gov.uk/id/local-authority/12UE,Huntingdonshire District Council,07/04/2016,187107,2016/017,5,695.04,Primesight  Ltd,CR132710,Bus Shelters,Building Cleaning,440,
http://statistics.data.gov.uk/id/local-authority/12UE,Huntingdonshire District Council,07/04/2016,187108,2016/014,5,695.04,Primesight  Ltd,CR132710,Bus Shelters,Building Cleaning,440,
http://statistics.data.gov.uk/id/local-authority/12UE,Huntingdonshire District Council,07/04/2016,187109,2016/006,5,695.04,Primesight  Ltd,CR132710,Bus Shelters,Building Cleaning,440,
http://statistics.data.gov.uk/id/local-authority/12UE,Huntingdonshire District Council,07/04/2016,187367,2016/022,5,695.04,Primesight  Ltd,CR132710,Bus Shelters,Building Cleaning,440,
http://statistics.data.gov.uk/id/local-authority/12UE,Huntingdonshire District Council,06/04/2016,187405,2016/022,5,-695.04,Primesight  Ltd,CR132710,Bus Shelters,Building Cleaning,440,
http://statistics.data.gov.uk/id/local-authority/12UE,Huntingdonshire District Council,21/04/2016,596514,1036,1,271.38,St Ives Town Council,CR000701,Bus Stations,Building Cleaning,440,
http://statistics.data.gov.uk/id/local-authority/12UE,Huntingdonshire District Council,28/04/2016,188099,56308,5,274.82,Beebys Limited,CR415822,Bus Stations,Cleaning Materials,443,
http://statistics.data.gov.uk/id/local-authority/12UE,Huntingdonshire District Council,07/04/2016,186844,1230268258,5,38.87,Orange Airtime,CR455799,Business & Enterprise Support,Telephone &Mobile Phonecharges,240,
http://statistics.data.gov.uk/id/local-authority/12UE,Huntingdonshire District Council,07/04/2016,187290,16104,5,332,Bigprinting,CR416383,Business & Enterprise Support,Advertising/Promoting Services,255,
http://statistics.data.gov.uk/id/local-authority/12UE,Huntingdonshire District Council,07/04/2016,186442,7008989,5,"5,862.00",Idox,CR481134,Business & Enterprise Support,Advertising/Promoting Services,255,
http://statistics.data.gov.uk/id/local-authority/12UE,Huntingdonshire District Council,07/04/2016,186462,17759,5,"1,500.00",Huntingdonshire Regional Coll,CR010587,Business & Enterprise Support,Grants (Paid Out),800,
http://statistics.data.gov.uk/id/local-authority/12UE,Huntingdonshire District Council,07/04/2016,186527,55524474,5,576,Archant Community Media Ltd,CR452143,Business & Enterprise Support,Hospitality,807,
http://statistics.data.gov.uk/id/local-authority/12UE,Huntingdonshire District Council,07/04/2016,187239,10666759,6,"5,000.00",Cambridgeshire County Council,CR121742,Business & Enterprise Support,Contribution (Paid Out),810,
http://statistics.data.gov.uk/id/local-authority/12UE,Huntingdonshire District Council,07/04/2016,186748,5457 - AF/50023,5,"12,000.00",Groundwork Hertfordshire,CR422299,Business & Enterprise Support,Contribution (Paid Out),810,
http://statistics.data.gov.uk/id/local-authority/12UE,Huntingdonshire District Council,07/04/2016,186844,1230268258,5,60,Orange Airtime,CR455799,C C T V,Telephone &Mobile Phonecharges,240,
http://statistics.data.gov.uk/id/local-authority/12UE,Huntingdonshire District Council,28/04/2016,188108,923469-066A,5,631.3,Virgin Media Business/Cpsn,CR455148,C C T V,I T Line Rental,248,
http://statistics.data.gov.uk/id/local-authority/12UE,Huntingdonshire District Council,07/04/2016,187195,11398240710,5,"1,052.44",E-On Energy,CR416430,C C T V,Electricity,420,
http://statistics.data.gov.uk/id/local-authority/12UE,Huntingdonshire District Council,07/04/2016,187358,4192,5,"1,050.00",Access Hire And Hydraulics,CR422526,C C T V,Equipment Maintenance,511,
http://statistics.data.gov.uk/id/local-authority/12UE,Huntingdonshire District Council,07/04/2016,186803,54014,5,780,Melsecure International,CR422888,C C T V,Equipment Maintenance,511,
http://statistics.data.gov.uk/id/local-authority/12UE,Huntingdonshire District Council,07/04/2016,185749,967978094,5,495.1,Office Depot Uk Ltd,CR455229,C C T V,Equipment Maintenance,511,
http://statistics.data.gov.uk/id/local-authority/12UE,Huntingdonshire District Council,07/04/2016,187087,SIN078566,5,"3,237.20",Quadrant Security Group,CR027775,C C T V,Equipment Maintenance,511,
http://statistics.data.gov.uk/id/local-authority/12UE,Huntingdonshire District Council,07/04/2016,187087,SIN078566,5,"4,063.00",Quadrant Security Group,CR027775,C C T V,Equipment Maintenance,511,
http://statistics.data.gov.uk/id/local-authority/12UE,Huntingdonshire District Council,07/04/2016,187361,SIN078207,5,"7,300.20",Quadrant Security Group,CR027775,C C T V,Equipment Maintenance,511,
http://statistics.data.gov.uk/id/local-authority/12UE,Huntingdonshire District Council,21/04/2016,187978,242160-102,5,"2,414.16",Virgin Media Business,CR033120,C C T V,Equipment Maintenance,511,
http://statistics.data.gov.uk/id/local-authority/12UE,Huntingdonshire District Council,28/04/2016,187372,10788,5,330,The Cctv User Group,CR453944,C C T V,Corporate Subscriptions,754,
http://statistics.data.gov.uk/id/local-authority/12UE,Huntingdonshire District Council,07/04/2016,187128,1029835,5,"5,940.00",Ocs Group Uk Limited,CR423395,C C T V,Other Services,799,
http://statistics.data.gov.uk/id/local-authority/12UE,Huntingdonshire District Council,07/04/2016,186740,11908,5,373.98,Lightning Recruitment,CR028184,Call Centre,Hired Staff,100,
http://statistics.data.gov.uk/id/local-authority/12UE,Huntingdonshire District Council,07/04/2016,187302,11980,5,357.72,Lightning Recruitment,CR028184,Call Centre,Hired Staff,100,
http://statistics.data.gov.uk/id/local-authority/12UE,Huntingdonshire District Council,07/04/2016,186355,11869,5,325.2,Lightning Recruitment,CR028184,Call Centre,Hired Staff,100,
http://statistics.data.gov.uk/id/local-authority/12UE,Huntingdonshire District Council,07/04/2016,186739,11947,5,325.2,Lightning Recruitment,CR028184,Call Centre,Hired Staff,100,
http://statistics.data.gov.uk/id/local-authority/12UE,Huntingdonshire District Council,07/04/2016,187129,503372786,5,936,Happy Serious Learning,CR455473,Call Centre,Conferences,137,
http://statistics.data.gov.uk/id/local-authority/12UE,Huntingdonshire District Council,07/04/2016,186844,1230268258,5,2.4,Orange Airtime,CR455799,Call Centre,Telephone &Mobile Phonecharges,240,
http://statistics.data.gov.uk/id/local-authority/12UE,Huntingdonshire District Council,07/04/2016,187393,63879,5,463.6,Britannia Fire & Security Ltd,CR410090,Call Centre,Building Mtce,303,
http://statistics.data.gov.uk/id/local-authority/12UE,Huntingdonshire District Council,21/04/2016,188051,219,5,792.99,Dms Home Improvements & Electrical,CR479202,Call Centre,Building Mtce,303,
http://statistics.data.gov.uk/id/local-authority/12UE,Huntingdonshire District Council,07/04/2016,187267,214,5,519.6,Dms Home Improvements & Electrical,CR479202,Call Centre,Building Mtce,303,
http://statistics.data.gov.uk/id/local-authority/12UE,Huntingdonshire District Council,07/04/2016,187348,JBC/27948/4663/,5,"1,519.96",J Breheny Contractors Ltd,CR000314,Car Park Assets,Sitework,359,
http://statistics.data.gov.uk/id/local-authority/12UE,Huntingdonshire District Council,07/04/2016,187355,JBC/27941/4663/,5,405.49,J Breheny Contractors Ltd,CR000314,Car Park Assets,Sitework,359,
http://statistics.data.gov.uk/id/local-authority/12UE,Huntingdonshire District Council,21/04/2016,186533,JBC/27891/4663,5,"9,573.25",J Breheny Contractors Ltd,CR000314,Car Parks Capital,Sitework,359,
http://statistics.data.gov.uk/id/local-authority/12UE,Huntingdonshire District Council,21/04/2016,186702,JBC/27892/4663,5,"2,409.50",J Breheny Contractors Ltd,CR000314,Car Parks Capital,Sitework,359,
http://statistics.data.gov.uk/id/local-authority/12UE,Huntingdonshire District Council,07/04/2016,186844,1230268258,5,12,Orange Airtime,CR455799,Central Services M Us,Telephone &Mobile Phonecharges,240,
http://statistics.data.gov.uk/id/local-authority/12UE,Huntingdonshire District Council,07/04/2016,595481,370872,5,"2,100.00",Mr Mike Magee,CR406407,Central Services M Us,Legal Fees,729,
http://statistics.data.gov.uk/id/local-authority/12UE,Huntingdonshire District Council,07/04/2016,186510,187619,5,655.99,Cambridge City Council,CR017896,Central Services M Us,Honorarium,P12,
http://statistics.data.gov.uk/id/local-authority/12UE,Huntingdonshire District Council,07/04/2016,186927,16011720,5,"49,863.55",Cambridgeshire County Council,CR006678,Chief Executive & Comt,Pension Early Retirements,151,
http://statistics.data.gov.uk/id/local-authority/12UE,Huntingdonshire District Council,07/04/2016,186927,16011720,5,"36,491.25",Cambridgeshire County Council,CR006678,Chief Executive & Comt,Pension Early Retirements,151,
http://statistics.data.gov.uk/id/local-authority/12UE,Huntingdonshire District Council,07/04/2016,186084,6003281478,5,"15,553.37",Capita Business Services Ltd,CR410639,Chief Executive & Comt,Software,206,
http://statistics.data.gov.uk/id/local-authority/12UE,Huntingdonshire District Council,07/04/2016,186844,1230268258,5,171.6,Orange Airtime,CR455799,Chief Executive & Comt,Telephone &Mobile Phonecharges,240,
http://statistics.data.gov.uk/id/local-authority/12UE,Huntingdonshire District Council,21/04/2016,188053,3796951,1,447.6,Espo,CR006566,Chief Executive & Comt,Equipment,500,
http://statistics.data.gov.uk/id/local-authority/12UE,Huntingdonshire District Council,28/04/2016,188356,188254,5,"51,737.08",Cambridge City Council,CR017896,Chief Executive & Comt,Consultants,711,
http://statistics.data.gov.uk/id/local-authority/12UE,Huntingdonshire District Council,07/04/2016,186099,01/15/HDC011,5,"12,144.00",Hester Management Services Ltd,CR422903,Chief Executive & Comt,Consultants,711,
http://statistics.data.gov.uk/id/local-authority/12UE,Huntingdonshire District Council,07/04/2016,186080,01/15/HDC012,5,"11,385.00",Hester Management Services Ltd,CR422903,Chief Executive & Comt,Consultants,711,
http://statistics.data.gov.uk/id/local-authority/12UE,Huntingdonshire District Council,07/04/2016,186153,PN1617/4,5,"2,139.60",Apse,CR479836,Chief Executive & Comt,Corporate Subscriptions,754,
http://statistics.data.gov.uk/id/local-authority/12UE,Huntingdonshire District Council,14/04/2016,596192,FN343970,6,499,North Kesteven District Council,CR480804,Chief Executive & Comt,Professional Subscriptions,755,
http://statistics.data.gov.uk/id/local-authority/12UE,Huntingdonshire District Council,28/04/2016,188261,C-0002296220,5,"5,322.50",Computershare Vouchers Ltd,CR412205,Child Care Vouchers - Payroll,Deductions Paid To Third Party,26,
http://statistics.data.gov.uk/id/local-authority/12UE,Huntingdonshire District Council,28/04/2016,188032,7530,5,396,Iccm,CR423473,Closed Churchyards,Training,130,
http://statistics.data.gov.uk/id/local-authority/12UE,Huntingdonshire District Council,21/04/2016,186683,JBC/27907/4663/,5,"1,029.08",J Breheny Contractors Ltd,CR000314,Closed Churchyards,Sitework,359,
http://statistics.data.gov.uk/id/local-authority/12UE,Huntingdonshire District Council,07/04/2016,186344,1776,5,732,G Ferrara Ltd,CR478949,Commercial Properties,Building Mtce,303,
http://statistics.data.gov.uk/id/local-authority/12UE,Huntingdonshire District Council,07/04/2016,186844,1230268258,5,33.6,Orange Airtime,CR455799,Community Safety,Telephone &Mobile Phonecharges,240,
http://statistics.data.gov.uk/id/local-authority/12UE,Huntingdonshire District Council,28/04/2016,188349,686,5,"12,500.00",Hact,CR455657,Concessionary Fares,Contribution (Paid Out),810,
http://statistics.data.gov.uk/id/local-authority/12UE,Huntingdonshire District Council,07/04/2016,187411,696,5,"2,096.00",Hact,CR455657,Concessionary Fares,Contribution (Paid Out),810,
http://statistics.data.gov.uk/id/local-authority/12UE,Huntingdonshire District Council,07/04/2016,186133,29095,5,"2,096.64",Community Information Services Ltd,CR478148,Council Tax,Printing (External),220,
http://statistics.data.gov.uk/id/local-authority/12UE,Huntingdonshire District Council,07/04/2016,187202,9051852378,5,"23,864.28",Royal Mail,CR027083,Council Tax,Postage,231,
http://statistics.data.gov.uk/id/local-authority/12UE,Huntingdonshire District Council,07/04/2016,186734,9051803279,5,"4,197.54",Royal Mail,CR027083,Council Tax,Postage,231,
http://statistics.data.gov.uk/id/local-authority/12UE,Huntingdonshire District Council,07/04/2016,186735,IN16PS16001694,5,292.39,Whistl Uk Ltd,CR479965,Council Tax,Postage,231,
http://statistics.data.gov.uk/id/local-authority/12UE,Huntingdonshire District Council,07/04/2016,186335,IN16PS16001407,5,"1,855.81",Whistl Uk Ltd,CR479965,Council Tax,Postage,231,
http://statistics.data.gov.uk/id/local-authority/12UE,Huntingdonshire District Council,07/04/2016,186336,IN16PS16001406,5,337.91,Whistl Uk Ltd,CR479965,Council Tax,Postage,231,
http://statistics.data.gov.uk/id/local-authority/12UE,Huntingdonshire District Council,07/04/2016,186844,1230268258,5,4.8,Orange Airtime,CR455799,Council Tax,Telephone &Mobile Phonecharges,240,
http://statistics.data.gov.uk/id/local-authority/12UE,Huntingdonshire District Council,21/04/2016,187717,2938,5,"4,465.93",Newlyn Plc,CR409114,Council Tax,Bailiffs,703,
http://statistics.data.gov.uk/id/local-authority/12UE,Huntingdonshire District Council,21/04/2016,187716,2937,5,484.31,Newlyn Plc,CR409114,Council Tax,Bailiffs,703,
http://statistics.data.gov.uk/id/local-authority/12UE,Huntingdonshire District Council,28/04/2016,187711,654485,5,412.8,Callcredit Ltd,CR455548,Council Tax,Enquiries,723,
http://statistics.data.gov.uk/id/local-authority/12UE,Huntingdonshire District Council,28/04/2016,188487,B7654,5,"2,973.60",Magnet Solutions,CR416903,Council Tax,Enquiries,723,
http://statistics.data.gov.uk/id/local-authority/12UE,Huntingdonshire District Council,07/04/2016,186879,4000003507,5,403.56,1st Choice Recruitment,CR416849,Countryside,Hired Staff,100,
http://statistics.data.gov.uk/id/local-authority/12UE,Huntingdonshire District Council,07/04/2016,186881,400003492,5,287.28,1st Choice Recruitment,CR416849,Countryside,Hired Staff,100,
http://statistics.data.gov.uk/id/local-authority/12UE,Huntingdonshire District Council,28/04/2016,187728,4000003541,5,287.28,1st Choice Recruitment,CR416849,Countryside,Hired Staff,100,
http://statistics.data.gov.uk/id/local-authority/12UE,Huntingdonshire District Council,07/04/2016,186720,75,5,338.85,George Alan,CR403103,Countryside,Protective Clothing & Uniforms,163,
http://statistics.data.gov.uk/id/local-authority/12UE,Huntingdonshire District Council,07/04/2016,186844,1230268258,5,41.13,Orange Airtime,CR455799,Countryside,Telephone &Mobile Phonecharges,240,
http://statistics.data.gov.uk/id/local-authority/12UE,Huntingdonshire District Council,07/04/2016,186912,SIN016989,5,492.8,Fenland Leisure Products Ltd,CR478560,Countryside,Sitework,359,
http://statistics.data.gov.uk/id/local-authority/12UE,Huntingdonshire District Council,07/04/2016,187341,JBC/27950/4663/,5,"1,762.90",J Breheny Contractors Ltd,CR000314,Countryside,Sitework,359,
http://statistics.data.gov.uk/id/local-authority/12UE,Huntingdonshire District Council,21/04/2016,188189,113415079,5,352.6,Anglian Water,CR000071,Countryside,Water & Sewerage,432,
http://statistics.data.gov.uk/id/local-authority/12UE,Huntingdonshire District Council,07/04/2016,186883,547919,5,422.41,Ecocleen Services Limited,CR406985,Countryside,Building Cleaning,440,
http://statistics.data.gov.uk/id/local-authority/12UE,Huntingdonshire District Council,28/04/2016,188424,2102473922,5,27.13,Booker Cash And Carry,CR027611,Countryside,Cleaning Materials,443,
http://statistics.data.gov.uk/id/local-authority/12UE,Huntingdonshire District Council,07/04/2016,187304,171562,5,"1,264.80",Arthur Ibbett Ltd,CR000430,Countryside,Equipment,500,
http://statistics.data.gov.uk/id/local-authority/12UE,Huntingdonshire District Council,07/04/2016,187305,171874,5,768,Arthur Ibbett Ltd,CR000430,Countryside,Equipment,500,
http://statistics.data.gov.uk/id/local-authority/12UE,Huntingdonshire District Council,07/04/2016,186906,35545,5,471.84,Caterfix Ltd,CR480775,Countryside,Equipment Maintenance,511,
http://statistics.data.gov.uk/id/local-authority/12UE,Huntingdonshire District Council,07/04/2016,187363,60829,5,-399.84,Caterfix Ltd,CR480775,Countryside,Equipment Maintenance,511,
http://statistics.data.gov.uk/id/local-authority/12UE,Huntingdonshire District Council,07/04/2016,187316,SIN017113,5,633.43,Fenland Leisure Products Ltd,CR478560,Countryside,Equipment Maintenance,511,
http://statistics.data.gov.uk/id/local-authority/12UE,Huntingdonshire District Council,07/04/2016,186721,8320,5,861.46,Nelson Dish And Glass Washing Machines Ltd,CR479822,Countryside,Equipment Maintenance,511,
http://statistics.data.gov.uk/id/local-authority/12UE,Huntingdonshire District Council,07/04/2016,187340,5224,5,"1,670.40",Llandre Sawn Wood Ltd,CR422294,Countryside,Materials,550,
http://statistics.data.gov.uk/id/local-authority/12UE,Huntingdonshire District Council,07/04/2016,186902,2102443984,5,421.14,Booker Cash And Carry,CR027611,Countryside,Catering Materials,559,
http://statistics.data.gov.uk/id/local-authority/12UE,Huntingdonshire District Council,28/04/2016,188424,2102473922,5,323.57,Booker Cash And Carry,CR027611,Countryside,Catering Materials,559,
http://statistics.data.gov.uk/id/local-authority/12UE,Huntingdonshire District Council,07/04/2016,186889,856772,5,350.89,King Bros,CR411339,Countryside,Catering Materials,559,
http://statistics.data.gov.uk/id/local-authority/12UE,Huntingdonshire District Council,07/04/2016,186892,855942,5,243.38,King Bros,CR411339,Countryside,Catering Materials,559,
http://statistics.data.gov.uk/id/local-authority/12UE,Huntingdonshire District Council,07/04/2016,186892,855942,5,22.29,King Bros,CR411339,Countryside,Catering Materials,559,
http://statistics.data.gov.uk/id/local-authority/12UE,Huntingdonshire District Council,28/04/2016,187761,591522,5,335.14,Pilgrim Foodservice Ltd,CR455695,Countryside,Catering Materials,559,
http://statistics.data.gov.uk/id/local-authority/12UE,Huntingdonshire District Council,07/04/2016,186920,66903,5,303.52,Snackline Direct Ltd,CR478090,Countryside,Catering Materials,559,
http://statistics.data.gov.uk/id/local-authority/12UE,Huntingdonshire District Council,28/04/2016,187877,13871,5,16.74,Jade Security Services Ltd,CR422256,Countryside,Cash Collection,702,
http://statistics.data.gov.uk/id/local-authority/12UE,Huntingdonshire District Council,28/04/2016,187985,548192,5,482.99,Ecocleen Services Limited,CR406985,Countryside,Subcontractors,777,
http://statistics.data.gov.uk/id/local-authority/12UE,Huntingdonshire District Council,07/04/2016,186743,11907,5,601.62,Lightning Recruitment,CR028184,Customer Service Centres,Hired Staff,100,
http://statistics.data.gov.uk/id/local-authority/12UE,Huntingdonshire District Council,07/04/2016,186350,11868,5,585.36,Lightning Recruitment,CR028184,Customer Service Centres,Hired Staff,100,
http://statistics.data.gov.uk/id/local-authority/12UE,Huntingdonshire District Council,07/04/2016,186738,11946,5,487.8,Lightning Recruitment,CR028184,Customer Service Centres,Hired Staff,100,
http://statistics.data.gov.uk/id/local-authority/12UE,Huntingdonshire District Council,07/04/2016,187298,11983,5,433.04,Lightning Recruitment,CR028184,Customer Service Centres,Hired Staff,100,
http://statistics.data.gov.uk/id/local-authority/12UE,Huntingdonshire District Council,07/04/2016,186352,11872,5,414.22,Lightning Recruitment,CR028184,Customer Service Centres,Hired Staff,100,
http://statistics.data.gov.uk/id/local-authority/12UE,Huntingdonshire District Council,07/04/2016,186737,11950,5,414.22,Lightning Recruitment,CR028184,Customer Service Centres,Hired Staff,100,
http://statistics.data.gov.uk/id/local-authority/12UE,Huntingdonshire District Council,07/04/2016,186742,11911,5,414.22,Lightning Recruitment,CR028184,Customer Service Centres,Hired Staff,100,
http://statistics.data.gov.uk/id/local-authority/12UE,Huntingdonshire District Council,07/04/2016,186844,1230268258,5,9.6,Orange Airtime,CR455799,Customer Service Centres,Telephone &Mobile Phonecharges,240,
http://statistics.data.gov.uk/id/local-authority/12UE,Huntingdonshire District Council,14/04/2016,596189,330,1,"3,958.94",St Neots Town Council,CR002483,Customer Service Centres,Service Charges,412,
http://statistics.data.gov.uk/id/local-authority/12UE,Huntingdonshire District Council,21/04/2016,188088,7046/16/046/PA,5,"1,440.00",Reading Agricultural Consultants,CR404991,Dc Application Processing,Consultants,711,
http://statistics.data.gov.uk/id/local-authority/12UE,Huntingdonshire District Council,07/04/2016,186482,9947958,5,"6,567.60",Snr Denton,CR453969,Dc Application Processing,Consultants,711,
http://statistics.data.gov.uk/id/local-authority/12UE,Huntingdonshire District Council,07/04/2016,186485,9948713,5,"4,800.00",Snr Denton,CR453969,Dc Application Processing,Consultants,711,
http://statistics.data.gov.uk/id/local-authority/12UE,Huntingdonshire District Council,07/04/2016,186484,901746,5,"-6,567.60",Snr Denton,CR453969,Dc Application Processing,Consultants,711,
http://statistics.data.gov.uk/id/local-authority/12UE,Huntingdonshire District Council,28/04/2016,188289,41/16,5,"2,280.00",Parkin Planning Services,CR423480,Dc Application Processing,Compensation,811,
http://statistics.data.gov.uk/id/local-authority/12UE,Huntingdonshire District Council,07/04/2016,186280,11870,5,651.96,Lightning Recruitment,CR028184,Development Team,Hired Staff,100,
http://statistics.data.gov.uk/id/local-authority/12UE,Huntingdonshire District Council,07/04/2016,186741,11909,5,651.96,Lightning Recruitment,CR028184,Development Team,Hired Staff,100,
http://statistics.data.gov.uk/id/local-authority/12UE,Huntingdonshire District Council,07/04/2016,187299,11948,5,521.57,Lightning Recruitment,CR028184,Development Team,Hired Staff,100,
http://statistics.data.gov.uk/id/local-authority/12UE,Huntingdonshire District Council,07/04/2016,187300,11981,5,391.18,Lightning Recruitment,CR028184,Development Team,Hired Staff,100,
http://statistics.data.gov.uk/id/local-authority/12UE,Huntingdonshire District Council,07/04/2016,186844,1230268258,5,2.4,Orange Airtime,CR455799,Development Team,Telephone &Mobile Phonecharges,240,
http://statistics.data.gov.uk/id/local-authority/12UE,Huntingdonshire District Council,07/04/2016,186331,352710,5,947.04,Surrey Envelopes,CR482428,Document Centre,Envelopes,224,
http://statistics.data.gov.uk/id/local-authority/12UE,Huntingdonshire District Council,07/04/2016,187230,9953,5,"1,913.99",West Country Group,CR400581,Document Centre,Envelopes,224,
http://statistics.data.gov.uk/id/local-authority/12UE,Huntingdonshire District Council,07/04/2016,187202,9051852378,5,471.73,Royal Mail,CR027083,Document Centre,Postage,231,
http://statistics.data.gov.uk/id/local-authority/12UE,Huntingdonshire District Council,07/04/2016,186734,9051803279,5,813.68,Royal Mail,CR027083,Document Centre,Postage,231,
http://statistics.data.gov.uk/id/local-authority/12UE,Huntingdonshire District Council,28/04/2016,187826,9051894489,5,"3,656.81",Royal Mail,CR027083,Document Centre,Postage,231,
http://statistics.data.gov.uk/id/local-authority/12UE,Huntingdonshire District Council,07/04/2016,186735,IN16PS16001694,5,"1,154.93",Whistl Uk Ltd,CR479965,Document Centre,Postage,231,
http://statistics.data.gov.uk/id/local-authority/12UE,Huntingdonshire District Council,07/04/2016,187284,IN16PS16001721,5,"1,060.98",Whistl Uk Ltd,CR479965,Document Centre,Postage,231,
http://statistics.data.gov.uk/id/local-authority/12UE,Huntingdonshire District Council,07/04/2016,186335,IN16PS16001407,5,824.59,Whistl Uk Ltd,CR479965,Document Centre,Postage,231,
http://statistics.data.gov.uk/id/local-authority/12UE,Huntingdonshire District Council,07/04/2016,186336,IN16PS16001406,5,910.18,Whistl Uk Ltd,CR479965,Document Centre,Postage,231,
http://statistics.data.gov.uk/id/local-authority/12UE,Huntingdonshire District Council,07/04/2016,187351,IN16PS16001863,5,675,Whistl Uk Ltd,CR479965,Document Centre,Postage,231,
http://statistics.data.gov.uk/id/local-authority/12UE,Huntingdonshire District Council,07/04/2016,186844,1230268258,5,4.8,Orange Airtime,CR455799,Document Centre,Telephone &Mobile Phonecharges,240,
http://statistics.data.gov.uk/id/local-authority/12UE,Huntingdonshire District Council,07/04/2016,187205,23579,5,"1,107.25",B & H Digital Ltd,CR478080,Document Centre,Equipment Maintenance,511,
http://statistics.data.gov.uk/id/local-authority/12UE,Huntingdonshire District Council,07/04/2016,187204,23616,5,"1,011.05",B & H Digital Ltd,CR478080,Document Centre,Equipment Maintenance,511,
http://statistics.data.gov.uk/id/local-authority/12UE,Huntingdonshire District Council,07/04/2016,186332,9116712,5,"2,098.70",Canon Uk Ltd,CR409013,Document Centre,Equipment Maintenance,511,
http://statistics.data.gov.uk/id/local-authority/12UE,Huntingdonshire District Council,28/04/2016,187823,9119592,5,"1,881.00",Canon Uk Ltd,CR409013,Document Centre,Equipment Maintenance,511,
http://statistics.data.gov.uk/id/local-authority/12UE,Huntingdonshire District Council,07/04/2016,186334,1123461942,5,"2,241.11",Konica Minolta,CR478866,Document Centre,Equipment Maintenance,511,
http://statistics.data.gov.uk/id/local-authority/12UE,Huntingdonshire District Council,07/04/2016,595235,822,5,"3,423.70",Mick Cornfield,CR416841,Document Centre,Equipment Maintenance,511,
http://statistics.data.gov.uk/id/local-authority/12UE,Huntingdonshire District Council,07/04/2016,595236,823,5,"2,106.39",Mick Cornfield,CR416841,Document Centre,Equipment Maintenance,511,
http://statistics.data.gov.uk/id/local-authority/12UE,Huntingdonshire District Council,07/04/2016,187180,5698590,5,556.8,Antalis Ltd,CR479468,Document Centre,Paper,562,
http://statistics.data.gov.uk/id/local-authority/12UE,Huntingdonshire District Council,07/04/2016,187180,5698590,5,115.92,Antalis Ltd,CR479468,Document Centre,Paper,562,
http://statistics.data.gov.uk/id/local-authority/12UE,Huntingdonshire District Council,07/04/2016,187180,5698590,5,250.56,Antalis Ltd,CR479468,Document Centre,Paper,562,
http://statistics.data.gov.uk/id/local-authority/12UE,Huntingdonshire District Council,07/04/2016,187180,5698590,5,62.21,Antalis Ltd,CR479468,Document Centre,Paper,562,
http://statistics.data.gov.uk/id/local-authority/12UE,Huntingdonshire District Council,07/04/2016,187287,5682320,5,938.95,Antalis Ltd,CR479468,Document Centre,Paper,562,
http://statistics.data.gov.uk/id/local-authority/12UE,Huntingdonshire District Council,07/04/2016,187181,5698589,5,626.4,Antalis Ltd,CR479468,Document Centre,Paper,562,
http://statistics.data.gov.uk/id/local-authority/12UE,Huntingdonshire District Council,07/04/2016,185913,5661582,5,110.98,Antalis Ltd,CR479468,Document Centre,Paper,562,
http://statistics.data.gov.uk/id/local-authority/12UE,Huntingdonshire District Council,07/04/2016,185913,5661582,5,168.6,Antalis Ltd,CR479468,Document Centre,Paper,562,
http://statistics.data.gov.uk/id/local-authority/12UE,Huntingdonshire District Council,07/04/2016,185913,5661582,5,98.76,Antalis Ltd,CR479468,Document Centre,Paper,562,
http://statistics.data.gov.uk/id/local-authority/12UE,Huntingdonshire District Council,07/04/2016,185913,5661582,5,93.42,Antalis Ltd,CR479468,Document Centre,Paper,562,
http://statistics.data.gov.uk/id/local-authority/12UE,Huntingdonshire District Council,07/04/2016,185913,5661582,5,63.66,Antalis Ltd,CR479468,Document Centre,Paper,562,
http://statistics.data.gov.uk/id/local-authority/12UE,Huntingdonshire District Council,07/04/2016,185913,5661582,5,89.38,Antalis Ltd,CR479468,Document Centre,Paper,562,
http://statistics.data.gov.uk/id/local-authority/12UE,Huntingdonshire District Council,07/04/2016,187179,5711251,5,28.98,Antalis Ltd,CR479468,Document Centre,Paper,562,
http://statistics.data.gov.uk/id/local-authority/12UE,Huntingdonshire District Council,07/04/2016,187179,5711251,5,556.8,Antalis Ltd,CR479468,Document Centre,Paper,562,
http://statistics.data.gov.uk/id/local-authority/12UE,Huntingdonshire District Council,07/04/2016,185912,5661583,5,556.8,Antalis Ltd,CR479468,Document Centre,Paper,562,
http://statistics.data.gov.uk/id/local-authority/12UE,Huntingdonshire District Council,07/04/2016,187182,5690550,5,277.61,Antalis Ltd,CR479468,Document Centre,Paper,562,
http://statistics.data.gov.uk/id/local-authority/12UE,Huntingdonshire District Council,07/04/2016,187182,5690550,5,79.32,Antalis Ltd,CR479468,Document Centre,Paper,562,
http://statistics.data.gov.uk/id/local-authority/12UE,Huntingdonshire District Council,07/04/2016,187183,5686442,5,114.95,Antalis Ltd,CR479468,Document Centre,Paper,562,
http://statistics.data.gov.uk/id/local-authority/12UE,Huntingdonshire District Council,07/04/2016,187183,5686442,5,128.56,Antalis Ltd,CR479468,Document Centre,Paper,562,
http://statistics.data.gov.uk/id/local-authority/12UE,Huntingdonshire District Council,07/04/2016,187183,5686442,5,68.4,Antalis Ltd,CR479468,Document Centre,Paper,562,
http://statistics.data.gov.uk/id/local-authority/12UE,Huntingdonshire District Council,07/04/2016,185911,5657436,5,115.92,Antalis Ltd,CR479468,Document Centre,Paper,562,
http://statistics.data.gov.uk/id/local-authority/12UE,Huntingdonshire District Council,07/04/2016,185911,5657436,5,134.76,Antalis Ltd,CR479468,Document Centre,Paper,562,
http://statistics.data.gov.uk/id/local-authority/12UE,Huntingdonshire District Council,07/04/2016,187253,IN0506069,5,"5,276.03",Staffline Group,CR416827,Domestic Refuse,Hired Staff,100,
http://statistics.data.gov.uk/id/local-authority/12UE,Huntingdonshire District Council,07/04/2016,187257,IN0504928,5,"4,520.33",Staffline Group,CR416827,Domestic Refuse,Hired Staff,100,
http://statistics.data.gov.uk/id/local-authority/12UE,Huntingdonshire District Council,07/04/2016,186707,IN0503570,5,"4,424.81",Staffline Group,CR416827,Domestic Refuse,Hired Staff,100,
http://statistics.data.gov.uk/id/local-authority/12UE,Huntingdonshire District Council,28/04/2016,187959,IN0508060,5,"4,239.76",Staffline Group,CR416827,Domestic Refuse,Hired Staff,100,
http://statistics.data.gov.uk/id/local-authority/12UE,Huntingdonshire District Council,07/04/2016,186709,IN0503571,5,"3,610.12",Staffline Group,CR416827,Domestic Refuse,Hired Staff,100,
http://statistics.data.gov.uk/id/local-authority/12UE,Huntingdonshire District Council,28/04/2016,187960,IN0508061,5,"3,066.71",Staffline Group,CR416827,Domestic Refuse,Hired Staff,100,
http://statistics.data.gov.uk/id/local-authority/12UE,Huntingdonshire District Council,07/04/2016,187255,IN0504929,5,"2,517.06",Staffline Group,CR416827,Domestic Refuse,Hired Staff,100,
http://statistics.data.gov.uk/id/local-authority/12UE,Huntingdonshire District Council,07/04/2016,187252,IN0506071,5,"2,235.24",Staffline Group,CR416827,Domestic Refuse,Hired Staff,100,
http://statistics.data.gov.uk/id/local-authority/12UE,Huntingdonshire District Council,07/04/2016,187254,IN0506070,5,394.92,Staffline Group,CR416827,Domestic Refuse,Hired Staff,100,
http://statistics.data.gov.uk/id/local-authority/12UE,Huntingdonshire District Council,07/04/2016,187329,SIN0607263,5,298.56,Howsafe Ltd,CR000409,Domestic Refuse,Protective Clothing & Uniforms,163,
http://statistics.data.gov.uk/id/local-authority/12UE,Huntingdonshire District Council,07/04/2016,187330,SIN0606989,5,283.04,Howsafe Ltd,CR000409,Domestic Refuse,Protective Clothing & Uniforms,163,
http://statistics.data.gov.uk/id/local-authority/12UE,Huntingdonshire District Council,07/04/2016,187288,337702,5,389.82,Smi Group,CR423139,Domestic Refuse,Protective Clothing & Uniforms,163,
http://statistics.data.gov.uk/id/local-authority/12UE,Huntingdonshire District Council,07/04/2016,186844,1230268258,5,16.8,Orange Airtime,CR455799,Domestic Refuse,Telephone &Mobile Phonecharges,240,
http://statistics.data.gov.uk/id/local-authority/12UE,Huntingdonshire District Council,07/04/2016,187301,55497279,5,371.7,Archant Herts & Cambs,CR415764,Domestic Refuse,Advertising/Promoting Services,255,
http://statistics.data.gov.uk/id/local-authority/12UE,Huntingdonshire District Council,07/04/2016,187318,SINV-093155,5,"7,992.19",Gelpack Excelsior Limited,CR002966,Domestic Refuse,Refuse Sacks,552,
http://statistics.data.gov.uk/id/local-authority/12UE,Huntingdonshire District Council,07/04/2016,187320,SINV-093721,5,"1,345.20",Gelpack Excelsior Limited,CR002966,Domestic Refuse,Refuse Sacks,552,
http://statistics.data.gov.uk/id/local-authority/12UE,Huntingdonshire District Council,28/04/2016,188120,279862,5,"1,474.94",Dennis Eagle Ltd,CR000200,Domestic Refuse,Vehicle Maintenance External,619,
http://statistics.data.gov.uk/id/local-authority/12UE,Huntingdonshire District Council,07/04/2016,186792,83518,5,649.2,Frank Ratcliffe & Son,CR007546,Domestic Refuse,Vehicle Maintenance External,619,
http://statistics.data.gov.uk/id/local-authority/12UE,Huntingdonshire District Council,07/04/2016,186791,83514,5,385.2,Frank Ratcliffe & Son,CR007546,Domestic Refuse,Vehicle Maintenance External,619,
http://statistics.data.gov.uk/id/local-authority/12UE,Huntingdonshire District Council,07/04/2016,186827,98787,5,276,Huntingdon Plant Hire,CR000425,Domestic Refuse,Vehicle Cleaning,620,
http://statistics.data.gov.uk/id/local-authority/12UE,Huntingdonshire District Council,07/04/2016,186833,23474,5,120,M & N Vehicle Services,CR480661,Domestic Refuse,Vehicle Mot,622,
http://statistics.data.gov.uk/id/local-authority/12UE,Huntingdonshire District Council,07/04/2016,187274,85923,5,874.7,Bandvulc Truck Tyres,CR406810,Domestic Refuse,Vehicle Parts & Fittings,625,
http://statistics.data.gov.uk/id/local-authority/12UE,Huntingdonshire District Council,07/04/2016,186823,DE10939469,5,"1,074.94",Dennis Eagle Ltd,CR000200,Domestic Refuse,Vehicle Parts & Fittings,625,
http://statistics.data.gov.uk/id/local-authority/12UE,Huntingdonshire District Council,07/04/2016,186825,DE10939066,5,952.93,Dennis Eagle Ltd,CR000200,Domestic Refuse,Vehicle Parts & Fittings,625,
http://statistics.data.gov.uk/id/local-authority/12UE,Huntingdonshire District Council,07/04/2016,186822,DE10938320,5,780.66,Dennis Eagle Ltd,CR000200,Domestic Refuse,Vehicle Parts & Fittings,625,
http://statistics.data.gov.uk/id/local-authority/12UE,Huntingdonshire District Council,07/04/2016,187312,DE10937339,5,620.84,Dennis Eagle Ltd,CR000200,Domestic Refuse,Vehicle Parts & Fittings,625,
http://statistics.data.gov.uk/id/local-authority/12UE,Huntingdonshire District Council,07/04/2016,187310,DE10937337,5,296.18,Dennis Eagle Ltd,CR000200,Domestic Refuse,Vehicle Parts & Fittings,625,
http://statistics.data.gov.uk/id/local-authority/12UE,Huntingdonshire District Council,07/04/2016,186833,23474,5,"2,946.84",M & N Vehicle Services,CR480661,Domestic Refuse,Vehicle Parts & Fittings,625,
http://statistics.data.gov.uk/id/local-authority/12UE,Huntingdonshire District Council,21/04/2016,187738,23579,5,"2,546.38",M & N Vehicle Services,CR480661,Domestic Refuse,Vehicle Parts & Fittings,625,
http://statistics.data.gov.uk/id/local-authority/12UE,Huntingdonshire District Council,28/04/2016,188430,133897,5,348,Silver Shield Windscreens,CR024745,Domestic Refuse,Vehicle Parts & Fittings,625,
http://statistics.data.gov.uk/id/local-authority/12UE,Huntingdonshire District Council,28/04/2016,187747,96324819,5,359.35,Terberg Matec Uk Ltd,CR402183,Domestic Refuse,Vehicle Parts & Fittings,625,
http://statistics.data.gov.uk/id/local-authority/12UE,Huntingdonshire District Council,14/04/2016,187759,36984,5,155.41,Trinity Engineering & Component Supplies Ltd,CR455479,Domestic Refuse,Vehicle Parts & Fittings,625,
http://statistics.data.gov.uk/id/local-authority/12UE,Huntingdonshire District Council,14/04/2016,187757,36983,5,108.04,Trinity Engineering & Component Supplies Ltd,CR455479,Domestic Refuse,Vehicle Parts & Fittings,625,
http://statistics.data.gov.uk/id/local-authority/12UE,Huntingdonshire District Council,07/04/2016,186811,264360I,5,257.76,A C Commercials,CR000141,Domestic Refuse,Vehicle Oil & Lubricants,626,
http://statistics.data.gov.uk/id/local-authority/12UE,Huntingdonshire District Council,07/04/2016,186840,183608,5,294,Barton Petroleum,CR409205,Domestic Refuse,Vehicle Oil & Lubricants,626,
http://statistics.data.gov.uk/id/local-authority/12UE,Huntingdonshire District Council,07/04/2016,187274,85923,5,"1,050.64",Bandvulc Truck Tyres,CR406810,Domestic Refuse,Tyres,630,
http://statistics.data.gov.uk/id/local-authority/12UE,Huntingdonshire District Council,28/04/2016,188115,86909,5,186.32,Bandvulc Truck Tyres,CR406810,Domestic Refuse,Tyres,630,
http://statistics.data.gov.uk/id/local-authority/12UE,Huntingdonshire District Council,14/04/2016,187735,33152,5,211.68,Magnum Tyres Ltd,CR479195,Domestic Refuse,Tyres,630,
http://statistics.data.gov.uk/id/local-authority/12UE,Huntingdonshire District Council,07/04/2016,187270,187472,5,10.74,Digital Id Limited,CR453985,E F H And Depots,Postage,231,
http://statistics.data.gov.uk/id/local-authority/12UE,Huntingdonshire District Council,28/04/2016,188161,64074,5,"1,794.00",Britannia Fire & Security Ltd,CR410090,E F H And Depots,Building Mtce,303,
http://statistics.data.gov.uk/id/local-authority/12UE,Huntingdonshire District Council,07/04/2016,187270,187472,5,896.4,Digital Id Limited,CR453985,E F H And Depots,Building Mtce,303,
http://statistics.data.gov.uk/id/local-authority/12UE,Huntingdonshire District Council,28/04/2016,188484,216,5,469.44,Dms Home Improvements & Electrical,CR479202,E F H And Depots,Building Mtce,303,
http://statistics.data.gov.uk/id/local-authority/12UE,Huntingdonshire District Council,21/04/2016,186438,10061,5,"1,101.60",Officestor,CR479100,E F H And Depots,Building Mtce,303,
http://statistics.data.gov.uk/id/local-authority/12UE,Huntingdonshire District Council,21/04/2016,187692,63695,5,775.2,Britannia Fire & Security Ltd,CR410090,E F H And Depots,Plant & Equipment Maintenance,380,
http://statistics.data.gov.uk/id/local-authority/12UE,Huntingdonshire District Council,28/04/2016,187693,63834,5,480,Britannia Fire & Security Ltd,CR410090,E F H And Depots,Plant & Equipment Maintenance,380,
http://statistics.data.gov.uk/id/local-authority/12UE,Huntingdonshire District Council,07/04/2016,186824,S3077960,5,270,First In Service Ltd,CR422285,E F H And Depots,Plant & Equipment Maintenance,380,
http://statistics.data.gov.uk/id/local-authority/12UE,Huntingdonshire District Council,07/04/2016,186775,CD970025727,5,309.6,Omega Red Group,CR411029,E F H And Depots,Plant & Equipment Maintenance,380,
http://statistics.data.gov.uk/id/local-authority/12UE,Huntingdonshire District Council,26/04/2016,188344,65924,5,"4,153.95",Haven Power Ltd,CR455940,E F H And Depots,Electricity,420,
http://statistics.data.gov.uk/id/local-authority/12UE,Huntingdonshire District Council,07/04/2016,187186,801225389,5,376.41,Swalec,CR407130,E F H And Depots,Electricity,420,
http://statistics.data.gov.uk/id/local-authority/12UE,Huntingdonshire District Council,21/04/2016,187720,12489089940,5,457.46,E-On Energy,CR416430,E F H And Depots,Gas,421,
http://statistics.data.gov.uk/id/local-authority/12UE,Huntingdonshire District Council,07/04/2016,187392,CD200005104,5,52.45,Integrated Water Services Ltd,CR452140,E F H And Depots,Water & Sewerage,432,
http://statistics.data.gov.uk/id/local-authority/12UE,Huntingdonshire District Council,07/04/2016,187295,4626,5,"1,105.72",Enterprise Support Services Uk Ltd,CR422509,E F H And Depots,Building Cleaning,440,
http://statistics.data.gov.uk/id/local-authority/12UE,Huntingdonshire District Council,28/04/2016,187990,63633278,5,260.78,Phs Group Ltd,CR032018,E F H And Depots,Shredding,773,
http://statistics.data.gov.uk/id/local-authority/12UE,Huntingdonshire District Council,07/04/2016,186016,249607,5,869.4,Shaw & Sons Limited,CR003422,Elections,Stationery,225,
http://statistics.data.gov.uk/id/local-authority/12UE,Huntingdonshire District Council,07/04/2016,186356,92157201,5,765,Neopost,CR400652,Elections,Postage,231,
http://statistics.data.gov.uk/id/local-authority/12UE,Huntingdonshire District Council,07/04/2016,187258,9051888176,5,"36,408.12",Royal Mail,CR027083,Elections,Postage,231,
http://statistics.data.gov.uk/id/local-authority/12UE,Huntingdonshire District Council,07/04/2016,187202,9051852378,5,166.86,Royal Mail,CR027083,Elections,Postage,231,
http://statistics.data.gov.uk/id/local-authority/12UE,Huntingdonshire District Council,07/04/2016,187284,IN16PS16001721,5,84.79,Whistl Uk Ltd,CR479965,Elections,Postage,231,
http://statistics.data.gov.uk/id/local-authority/12UE,Huntingdonshire District Council,07/04/2016,187202,9051852378,5,"1,403.04",Royal Mail,CR027083,Electoral Registration,Postage,231,
http://statistics.data.gov.uk/id/local-authority/12UE,Huntingdonshire District Council,07/04/2016,186734,9051803279,5,457.02,Royal Mail,CR027083,Electoral Registration,Postage,231,
http://statistics.data.gov.uk/id/local-authority/12UE,Huntingdonshire District Council,07/04/2016,186491,9051762134,5,690.34,Royal Mail,CR027083,Electoral Registration,Postage,231,
http://statistics.data.gov.uk/id/local-authority/12UE,Huntingdonshire District Council,07/04/2016,186735,IN16PS16001694,5,111.53,Whistl Uk Ltd,CR479965,Electoral Registration,Postage,231,
http://statistics.data.gov.uk/id/local-authority/12UE,Huntingdonshire District Council,07/04/2016,187284,IN16PS16001721,5,200.48,Whistl Uk Ltd,CR479965,Electoral Registration,Postage,231,
http://statistics.data.gov.uk/id/local-authority/12UE,Huntingdonshire District Council,07/04/2016,186335,IN16PS16001407,5,277.31,Whistl Uk Ltd,CR479965,Electoral Registration,Postage,231,
http://statistics.data.gov.uk/id/local-authority/12UE,Huntingdonshire District Council,07/04/2016,186336,IN16PS16001406,5,363.38,Whistl Uk Ltd,CR479965,Electoral Registration,Postage,231,
http://statistics.data.gov.uk/id/local-authority/12UE,Huntingdonshire District Council,07/04/2016,187351,IN16PS16001863,5,126.98,Whistl Uk Ltd,CR479965,Electoral Registration,Postage,231,
http://statistics.data.gov.uk/id/local-authority/12UE,Huntingdonshire District Council,07/04/2016,186844,1230268258,5,28.8,Orange Airtime,CR455799,Electoral Registration,Telephone &Mobile Phonecharges,240,
http://statistics.data.gov.uk/id/local-authority/12UE,Huntingdonshire District Council,07/04/2016,186480,187885,5,500,Cambridge City Council,CR017896,Environmental Health M Us,Training,130,
http://statistics.data.gov.uk/id/local-authority/12UE,Huntingdonshire District Council,07/04/2016,186844,1230268258,5,220.78,Orange Airtime,CR455799,Environmental Health M Us,Telephone &Mobile Phonecharges,240,
http://statistics.data.gov.uk/id/local-authority/12UE,Huntingdonshire District Council,07/04/2016,187331,JBC/27942/4663/,5,694.66,J Breheny Contractors Ltd,CR000314,Environmental Imps Mgt,Sitework,359,
http://statistics.data.gov.uk/id/local-authority/12UE,Huntingdonshire District Council,21/04/2016,186692,JBC/27903/4663/,5,498.88,J Breheny Contractors Ltd,CR000314,Environmental Imps Mgt,Sitework,359,
http://statistics.data.gov.uk/id/local-authority/12UE,Huntingdonshire District Council,07/04/2016,187362,SIN007277,5,"9,000.00",Iql Uk Ltd,CR415623,Environmental Management,Training,130,
http://statistics.data.gov.uk/id/local-authority/12UE,Huntingdonshire District Council,07/04/2016,186773,48043,5,312,West Anglia Training Assoc.Ltd,CR025035,Environmental Management,Training,130,
http://statistics.data.gov.uk/id/local-authority/12UE,Huntingdonshire District Council,07/04/2016,186844,1230268258,5,141.6,Orange Airtime,CR455799,Environmental Management,Telephone &Mobile Phonecharges,240,
http://statistics.data.gov.uk/id/local-authority/12UE,Huntingdonshire District Council,21/04/2016,186701,JBC/27893/4663,5,353.05,J Breheny Contractors Ltd,CR000314,Environmental Management,Sitework,359,
http://statistics.data.gov.uk/id/local-authority/12UE,Huntingdonshire District Council,07/04/2016,186152,INV1648526,5,361.2,Interaction Recruitment Plc,CR007892,Financial Services Mus,Hired Staff,100,
http://statistics.data.gov.uk/id/local-authority/12UE,Huntingdonshire District Council,07/04/2016,186938,11910,5,625.38,Lightning Recruitment,CR028184,Financial Services Mus,Hired Staff,100,
http://statistics.data.gov.uk/id/local-authority/12UE,Huntingdonshire District Council,07/04/2016,186934,11871,5,553.91,Lightning Recruitment,CR028184,Financial Services Mus,Hired Staff,100,
http://statistics.data.gov.uk/id/local-authority/12UE,Huntingdonshire District Council,28/04/2016,188183,11982,5,464.57,Lightning Recruitment,CR028184,Financial Services Mus,Hired Staff,100,
http://statistics.data.gov.uk/id/local-authority/12UE,Huntingdonshire District Council,07/04/2016,186937,11949,5,357.36,Lightning Recruitment,CR028184,Financial Services Mus,Hired Staff,100,
http://statistics.data.gov.uk/id/local-authority/12UE,Huntingdonshire District Council,07/04/2016,186506,33066,5,602.95,Meyer Scott Recruitment Limited,CR422369,Financial Services Mus,Hired Staff,100,
http://statistics.data.gov.uk/id/local-authority/12UE,Huntingdonshire District Council,07/04/2016,186928,33097,5,602.95,Meyer Scott Recruitment Limited,CR422369,Financial Services Mus,Hired Staff,100,
http://statistics.data.gov.uk/id/local-authority/12UE,Huntingdonshire District Council,07/04/2016,187261,33030,5,602.95,Meyer Scott Recruitment Limited,CR422369,Financial Services Mus,Hired Staff,100,
http://statistics.data.gov.uk/id/local-authority/12UE,Huntingdonshire District Council,07/04/2016,187260,33132,5,488.88,Meyer Scott Recruitment Limited,CR422369,Financial Services Mus,Hired Staff,100,
http://statistics.data.gov.uk/id/local-authority/12UE,Huntingdonshire District Council,28/04/2016,187765,33164,5,480.73,Meyer Scott Recruitment Limited,CR422369,Financial Services Mus,Hired Staff,100,
http://statistics.data.gov.uk/id/local-authority/12UE,Huntingdonshire District Council,07/04/2016,187262,JXN75VP3YH5,5,834,Cipfa Annual Conference 2014,CR422412,Financial Services Mus,Conferences,137,
http://statistics.data.gov.uk/id/local-authority/12UE,Huntingdonshire District Council,07/04/2016,186926,15224,5,804,Auditware Systems Limited,CR40190,Financial Services Mus,Software,206,
http://statistics.data.gov.uk/id/local-authority/12UE,Huntingdonshire District Council,07/04/2016,186844,1230268258,5,4.8,Orange Airtime,CR455799,Financial Services Mus,Telephone &Mobile Phonecharges,240,
http://statistics.data.gov.uk/id/local-authority/12UE,Huntingdonshire District Council,21/04/2016,188058,3115706,5,"4,092.00",Cipfa Business Limited,CR480088,Financial Services Mus,Books & Publications,250,
http://statistics.data.gov.uk/id/local-authority/12UE,Huntingdonshire District Council,28/04/2016,187711,654485,5,52.8,Callcredit Ltd,CR455548,Financial Services Mus,Enquiries,723,
http://statistics.data.gov.uk/id/local-authority/12UE,Huntingdonshire District Council,28/04/2016,188487,B7654,5,655.2,Magnet Solutions,CR416903,Financial Services Mus,Enquiries,723,
http://statistics.data.gov.uk/id/local-authority/12UE,Huntingdonshire District Council,21/04/2016,188160,3116312,5,"6,096.00",Cipfa Business Limited,CR480088,Financial Services Mus,Corporate Subscriptions,754,
http://statistics.data.gov.uk/id/local-authority/12UE,Huntingdonshire District Council,28/04/2016,188439,37071,5,391.04,Trinity Engineering & Component Supplies Ltd,CR455479,Fleet Management,Materials,550,K1
http://statistics.data.gov.uk/id/local-authority/12UE,Huntingdonshire District Council,14/04/2016,187849,63689,5,291.45,Hq Forklifts Ltd,CR404076,Fleet Management,Vehicle Maintenance External,619,
http://statistics.data.gov.uk/id/local-authority/12UE,Huntingdonshire District Council,07/04/2016,186312,SI-076899,5,541.18,Somers Total Kare Ltd,CR408287,Fleet Management,Vehicle Parts & Fittings,625,
http://statistics.data.gov.uk/id/local-authority/12UE,Huntingdonshire District Council,07/04/2016,186930,192169,5,"2,313.00",Chevin Fleet Solutions,CR477454,Fleet Management,Licences,730,
http://statistics.data.gov.uk/id/local-authority/12UE,Huntingdonshire District Council,07/04/2016,186148,SO0171914,5,21.6,Klipspringer Ltd,CR405590,Food Safety,Equipment Maintenance,511,
http://statistics.data.gov.uk/id/local-authority/12UE,Huntingdonshire District Council,07/04/2016,186148,SO0171914,5,262.8,Klipspringer Ltd,CR405590,Food Safety,Equipment Maintenance,511,
http://statistics.data.gov.uk/id/local-authority/12UE,Huntingdonshire District Council,07/04/2016,186148,SO0171914,5,10.8,Klipspringer Ltd,CR405590,Food Safety,Equipment Maintenance,511,
http://statistics.data.gov.uk/id/local-authority/12UE,Huntingdonshire District Council,07/04/2016,187343,33706,5,"4,996.08",Smi Group,CR423139,Grounds Maintenance,Protective Clothing & Uniforms,163,
http://statistics.data.gov.uk/id/local-authority/12UE,Huntingdonshire District Council,07/04/2016,187323,36689,5,888.2,Groundsman,CR422159,Grounds Maintenance,Equipment,500,
http://statistics.data.gov.uk/id/local-authority/12UE,Huntingdonshire District Council,28/04/2016,187737,23679,5,95,M & N Vehicle Services,CR480661,Grounds Maintenance,Vehicle Mot,622,
http://statistics.data.gov.uk/id/local-authority/12UE,Huntingdonshire District Council,14/04/2016,187845,170896,5,297.36,Arthur Ibbett Ltd,CR000430,Grounds Maintenance,Vehicle Parts & Fittings,625,K9
http://statistics.data.gov.uk/id/local-authority/12UE,Huntingdonshire District Council,28/04/2016,187737,23679,5,"2,690.06",M & N Vehicle Services,CR480661,Grounds Maintenance,Vehicle Parts & Fittings,625,
http://statistics.data.gov.uk/id/local-authority/12UE,Huntingdonshire District Council,14/04/2016,187759,36984,5,88.81,Trinity Engineering & Component Supplies Ltd,CR455479,Grounds Maintenance,Vehicle Parts & Fittings,625,
http://statistics.data.gov.uk/id/local-authority/12UE,Huntingdonshire District Council,14/04/2016,187757,36983,5,61.85,Trinity Engineering & Component Supplies Ltd,CR455479,Grounds Maintenance,Vehicle Parts & Fittings,625,
http://statistics.data.gov.uk/id/local-authority/12UE,Huntingdonshire District Council,07/04/2016,187278,EDRM 31/03/2016,5,"3,350.00",Edrm Systems Ltd,CR416278,Helpdesk,Hired Staff,100,
http://statistics.data.gov.uk/id/local-authority/12UE,Huntingdonshire District Council,07/04/2016,186088,R012642,5,"1,320.00",Premier It Recruitment Ltd,CR454029,Helpdesk,Hired Staff,100,
http://statistics.data.gov.uk/id/local-authority/12UE,Huntingdonshire District Council,07/04/2016,186089,R012643,5,"1,320.00",Premier It Recruitment Ltd,CR454029,Helpdesk,Hired Staff,100,
http://statistics.data.gov.uk/id/local-authority/12UE,Huntingdonshire District Council,07/04/2016,186090,R012644,5,"1,320.00",Premier It Recruitment Ltd,CR454029,Helpdesk,Hired Staff,100,
http://statistics.data.gov.uk/id/local-authority/12UE,Huntingdonshire District Council,07/04/2016,186850,R012946,5,"1,320.00",Premier It Recruitment Ltd,CR454029,Helpdesk,Hired Staff,100,
http://statistics.data.gov.uk/id/local-authority/12UE,Huntingdonshire District Council,07/04/2016,186851,R012947,5,"1,320.00",Premier It Recruitment Ltd,CR454029,Helpdesk,Hired Staff,100,
http://statistics.data.gov.uk/id/local-authority/12UE,Huntingdonshire District Council,07/04/2016,186852,R012945,5,"1,320.00",Premier It Recruitment Ltd,CR454029,Helpdesk,Hired Staff,100,
http://statistics.data.gov.uk/id/local-authority/12UE,Huntingdonshire District Council,07/04/2016,186871,R013047,5,"1,056.00",Premier It Recruitment Ltd,CR454029,Helpdesk,Hired Staff,100,
http://statistics.data.gov.uk/id/local-authority/12UE,Huntingdonshire District Council,07/04/2016,186872,R013048,5,"1,056.00",Premier It Recruitment Ltd,CR454029,Helpdesk,Hired Staff,100,
http://statistics.data.gov.uk/id/local-authority/12UE,Huntingdonshire District Council,07/04/2016,186767,OP/I773443,5,"2,547.60",Phoenix Software Ltd,CR031918,Helpdesk,Software,206,
http://statistics.data.gov.uk/id/local-authority/12UE,Huntingdonshire District Council,07/04/2016,186759,OP/I773451,5,320.71,Phoenix Software Ltd,CR031918,Helpdesk,Software,206,
http://statistics.data.gov.uk/id/local-authority/12UE,Huntingdonshire District Council,07/04/2016,186844,1230268258,5,38.4,Orange Airtime,CR455799,Helpdesk,Telephone &Mobile Phonecharges,240,
http://statistics.data.gov.uk/id/local-authority/12UE,Huntingdonshire District Council,07/04/2016,174459,900964-094,5,"1,623.95",Virgin Media,CR412057,Helpdesk,I T Line Rental,248,
http://statistics.data.gov.uk/id/local-authority/12UE,Huntingdonshire District Council,07/04/2016,174455,900964-091,5,"1,590.00",Virgin Media,CR412057,Helpdesk,I T Line Rental,248,
http://statistics.data.gov.uk/id/local-authority/12UE,Huntingdonshire District Council,07/04/2016,174456,900964-092,5,"1,530.00",Virgin Media,CR412057,Helpdesk,I T Line Rental,248,
http://statistics.data.gov.uk/id/local-authority/12UE,Huntingdonshire District Council,07/04/2016,174457,900964-093,5,"1,530.00",Virgin Media,CR412057,Helpdesk,I T Line Rental,248,
http://statistics.data.gov.uk/id/local-authority/12UE,Huntingdonshire District Council,07/04/2016,174454,900964-095,5,"-7,156.45",Virgin Media,CR412057,Helpdesk,I T Line Rental,248,
http://statistics.data.gov.uk/id/local-authority/12UE,Huntingdonshire District Council,07/04/2016,187277,UK10/0420166719,5,"1,267.34",Vodafone Cable & Wireless,CR482316,Helpdesk,I T Line Rental,248,
http://statistics.data.gov.uk/id/local-authority/12UE,Huntingdonshire District Council,07/04/2016,186771,SINV00086208,5,462,Bist,CR422733,Helpdesk,Equipment Maintenance,511,
http://statistics.data.gov.uk/id/local-authority/12UE,Huntingdonshire District Council,07/04/2016,186771,SINV00086208,5,534,Bist,CR422733,Helpdesk,Equipment Maintenance,511,
http://statistics.data.gov.uk/id/local-authority/12UE,Huntingdonshire District Council,07/04/2016,186874,42003371 R7,5,"12,697.20",Imtech Aqua Maintenance Ltd,CR422225,Helpdesk,Equipment Maintenance,511,
http://statistics.data.gov.uk/id/local-authority/12UE,Huntingdonshire District Council,07/04/2016,186875,42003357 R7,5,"1,224.00",Imtech Aqua Maintenance Ltd,CR422225,Helpdesk,Equipment Maintenance,511,
http://statistics.data.gov.uk/id/local-authority/12UE,Huntingdonshire District Council,07/04/2016,186876,42003356 R7,5,540,Imtech Aqua Maintenance Ltd,CR422225,Helpdesk,Equipment Maintenance,511,
http://statistics.data.gov.uk/id/local-authority/12UE,Huntingdonshire District Council,07/04/2016,186083,11275,5,720,Nettitude Limited,CR455281,Helpdesk,Equipment Maintenance,511,
http://statistics.data.gov.uk/id/local-authority/12UE,Huntingdonshire District Council,07/04/2016,186083,11275,5,"8,640.00",Nettitude Limited,CR455281,Helpdesk,Equipment Maintenance,511,
http://statistics.data.gov.uk/id/local-authority/12UE,Huntingdonshire District Council,14/04/2016,596187,8810,5,442.2,Steves Taxis & Private Hire,CR155956,Homelessness Management,Travel Expenses,636,
http://statistics.data.gov.uk/id/local-authority/12UE,Huntingdonshire District Council,21/04/2016,188087,19200,5,"1,130.61",King Street Housing Society,CR409301,Homelessness Management,Management Charge,733,
http://statistics.data.gov.uk/id/local-authority/12UE,Huntingdonshire District Council,21/04/2016,188089,19201,5,498.45,King Street Housing Society,CR409301,Homelessness Management,Management Charge,733,
http://statistics.data.gov.uk/id/local-authority/12UE,Huntingdonshire District Council,21/04/2016,188084,188463,5,437.1,Cambridge City Council,CR017896,Homelessness Management,Bed & Breakfast Payment,818,
http://statistics.data.gov.uk/id/local-authority/12UE,Huntingdonshire District Council,21/04/2016,188083,188462,5,407.96,Cambridge City Council,CR017896,Homelessness Management,Bed & Breakfast Payment,818,
http://statistics.data.gov.uk/id/local-authority/12UE,Huntingdonshire District Council,28/04/2016,188466,188716,5,407.96,Cambridge City Council,CR017896,Homelessness Management,Bed & Breakfast Payment,818,
http://statistics.data.gov.uk/id/local-authority/12UE,Huntingdonshire District Council,21/04/2016,188080,Nov-16,5,825,The Station Hotel,CR453752,Homelessness Management,Bed & Breakfast Payment,818,
http://statistics.data.gov.uk/id/local-authority/12UE,Huntingdonshire District Council,07/04/2016,187391,EC011,5,"3,300.00",Ukos Projects Ltd,CR423164,Homelessness Management,Bed & Breakfast Payment,818,
http://statistics.data.gov.uk/id/local-authority/12UE,Huntingdonshire District Council,28/04/2016,188465,EC015,5,"3,060.00",Ukos Projects Ltd,CR423164,Homelessness Management,Bed & Breakfast Payment,818,
http://statistics.data.gov.uk/id/local-authority/12UE,Huntingdonshire District Council,21/04/2016,188081,EC013,5,"2,940.00",Ukos Projects Ltd,CR423164,Homelessness Management,Bed & Breakfast Payment,818,
http://statistics.data.gov.uk/id/local-authority/12UE,Huntingdonshire District Council,21/04/2016,188082,EC014,5,379.2,Ukos Projects Ltd,CR423164,Homelessness Management,Bed & Breakfast Payment,818,
http://statistics.data.gov.uk/id/local-authority/12UE,Huntingdonshire District Council,28/04/2016,188464,EC016,5,284.4,Ukos Projects Ltd,CR423164,Homelessness Management,Bed & Breakfast Payment,818,
http://statistics.data.gov.uk/id/local-authority/12UE,Huntingdonshire District Council,07/04/2016,187079,3166912,5,659.88,Venn Group Recruitment,CR415403,Housing  Benefits Admin,Hired Staff,100,
http://statistics.data.gov.uk/id/local-authority/12UE,Huntingdonshire District Council,14/04/2016,595901,792616,6,"2,000.00",Breckland Council,CR416546,Housing  Benefits Admin,Software,206,
http://statistics.data.gov.uk/id/local-authority/12UE,Huntingdonshire District Council,07/04/2016,187170,11002,5,"2,400.00",Intelligence Led Solutions Limited,CR479499,Housing  Benefits Admin,Software,206,
http://statistics.data.gov.uk/id/local-authority/12UE,Huntingdonshire District Council,07/04/2016,186735,IN16PS16001694,5,"3,828.18",Whistl Uk Ltd,CR479965,Housing  Benefits Admin,Postage,231,
http://statistics.data.gov.uk/id/local-authority/12UE,Huntingdonshire District Council,07/04/2016,186335,IN16PS16001407,5,552.19,Whistl Uk Ltd,CR479965,Housing  Benefits Admin,Postage,231,
http://statistics.data.gov.uk/id/local-authority/12UE,Huntingdonshire District Council,07/04/2016,186844,1230268258,5,62.4,Orange Airtime,CR455799,Housing  Benefits Admin,Telephone &Mobile Phonecharges,240,
http://statistics.data.gov.uk/id/local-authority/12UE,Huntingdonshire District Council,28/04/2016,188487,B7654,5,"1,411.20",Magnet Solutions,CR416903,Housing  Benefits Admin,Enquiries,723,
http://statistics.data.gov.uk/id/local-authority/12UE,Huntingdonshire District Council,14/04/2016,595901,792616,6,"16,000.00",Breckland Council,CR416546,Housing  Benefits Admin,Contribution (Paid Out),810,
http://statistics.data.gov.uk/id/local-authority/12UE,Huntingdonshire District Council,14/04/2016,595494,4976,6,"54,660.00",South Cambs District Council,CR002825,Housing  Benefits Admin,Contribution (Paid Out),810,
http://statistics.data.gov.uk/id/local-authority/12UE,Huntingdonshire District Council,14/04/2016,187873,INV-35827,5,430.8,Capita Business Services Ltd,CR410639,Housing Management Units,Training,130,
http://statistics.data.gov.uk/id/local-authority/12UE,Huntingdonshire District Council,07/04/2016,186844,1230268258,5,26.4,Orange Airtime,CR455799,Housing Management Units,Telephone &Mobile Phonecharges,240,
http://statistics.data.gov.uk/id/local-authority/12UE,Huntingdonshire District Council,28/04/2016,188367,DIHH/00002931,5,"6,940.20",Luminus Homes,CR401276,Housing Services Other,Management Charge,733,
http://statistics.data.gov.uk/id/local-authority/12UE,Huntingdonshire District Council,21/04/2016,188086,HDC 2016-01,5,792,Kelsall Consultancy Ltd,CR422497,Housing Strategy,Consultants,711,
http://statistics.data.gov.uk/id/local-authority/12UE,Huntingdonshire District Council,14/04/2016,187859,HDC 2016-03,5,384,Kelsall Consultancy Ltd,CR422497,Housing Strategy,Consultants,711,
http://statistics.data.gov.uk/id/local-authority/12UE,Huntingdonshire District Council,28/04/2016,187731,X13480,5,477.6,Institution Of Lighting Professionals,CR408323,Human Resources,Training,130,
http://statistics.data.gov.uk/id/local-authority/12UE,Huntingdonshire District Council,21/04/2016,596483,8787,5,"3,639.60",Its Training Uk Ltd,CR403861,Human Resources,Training,130,
http://statistics.data.gov.uk/id/local-authority/12UE,Huntingdonshire District Council,28/04/2016,188094,LS240216,5,800,Martin Davies,CR417320,Human Resources,Training,130,
http://statistics.data.gov.uk/id/local-authority/12UE,Huntingdonshire District Council,28/04/2016,188262,38382,5,"1,200.00",Safety Media Ltd,CR033676,Human Resources,Training,130,
http://statistics.data.gov.uk/id/local-authority/12UE,Huntingdonshire District Council,28/04/2016,188261,C-0002296220,5,223.55,Computershare Vouchers Ltd,CR412205,Human Resources,Childcare Admin Vouchers,144,
http://statistics.data.gov.uk/id/local-authority/12UE,Huntingdonshire District Council,07/04/2016,186844,1230268258,5,4.8,Orange Airtime,CR455799,Human Resources,Telephone &Mobile Phonecharges,240,
http://statistics.data.gov.uk/id/local-authority/12UE,Huntingdonshire District Council,14/04/2016,595774,9451,5,"2,203.99",Northgate Hr Limited,CR416464,Human Resources,Consultants,711,
http://statistics.data.gov.uk/id/local-authority/12UE,Huntingdonshire District Council,07/04/2016,186094,110316-3,5,"6,480.00",Ict Projects Ltd,CR423374,Imd Shared Service,Hired Staff,100,
http://statistics.data.gov.uk/id/local-authority/12UE,Huntingdonshire District Council,07/04/2016,187280,110316_4,5,"5,040.00",Ict Projects Ltd,CR423374,Imd Shared Service,Hired Staff,100,
http://statistics.data.gov.uk/id/local-authority/12UE,Huntingdonshire District Council,21/04/2016,188100,12049,5,619.08,Lightning Recruitment,CR028184,Imd Shared Service,Hired Staff,100,
http://statistics.data.gov.uk/id/local-authority/12UE,Huntingdonshire District Council,28/04/2016,188401,12084,5,603,Lightning Recruitment,CR028184,Imd Shared Service,Hired Staff,100,
http://statistics.data.gov.uk/id/local-authority/12UE,Huntingdonshire District Council,14/04/2016,187869,R013399,5,"1,320.00",Premier It Recruitment Ltd,CR454029,Imd Shared Service,Hired Staff,100,
http://statistics.data.gov.uk/id/local-authority/12UE,Huntingdonshire District Council,07/04/2016,187419,R013208,5,"1,056.00",Premier It Recruitment Ltd,CR454029,Imd Shared Service,Hired Staff,100,
http://statistics.data.gov.uk/id/local-authority/12UE,Huntingdonshire District Council,07/04/2016,187416,R013211,5,792,Premier It Recruitment Ltd,CR454029,Imd Shared Service,Hired Staff,100,
http://statistics.data.gov.uk/id/local-authority/12UE,Huntingdonshire District Council,07/04/2016,187421,R013207,5,792,Premier It Recruitment Ltd,CR454029,Imd Shared Service,Hired Staff,100,
http://statistics.data.gov.uk/id/local-authority/12UE,Huntingdonshire District Council,07/04/2016,187417,R013210,5,264,Premier It Recruitment Ltd,CR454029,Imd Shared Service,Hired Staff,100,
http://statistics.data.gov.uk/id/local-authority/12UE,Huntingdonshire District Council,07/04/2016,187418,R013209,5,264,Premier It Recruitment Ltd,CR454029,Imd Shared Service,Hired Staff,100,
http://statistics.data.gov.uk/id/local-authority/12UE,Huntingdonshire District Council,07/04/2016,187420,R013206,5,264,Premier It Recruitment Ltd,CR454029,Imd Shared Service,Hired Staff,100,
http://statistics.data.gov.uk/id/local-authority/12UE,Huntingdonshire District Council,07/04/2016,187388,45944,5,"3,972.00",Vector Resourcing Ltd,CR423464,Imd Shared Service,Hired Staff,100,
http://statistics.data.gov.uk/id/local-authority/12UE,Huntingdonshire District Council,07/04/2016,187350,45744,5,"2,868.00",Vector Resourcing Ltd,CR423464,Imd Shared Service,Hired Staff,100,
http://statistics.data.gov.uk/id/local-authority/12UE,Huntingdonshire District Council,07/04/2016,187422,104372,5,"73,674.97",Idox,CR481134,Imd Shared Service,Software,206,
http://statistics.data.gov.uk/id/local-authority/12UE,Huntingdonshire District Council,07/04/2016,187415,104370,5,"5,400.00",Idox,CR481134,Imd Shared Service,Software,206,
http://statistics.data.gov.uk/id/local-authority/12UE,Huntingdonshire District Council,14/04/2016,187874,7008553,5,"1,140.00",Idox,CR481134,Imd Shared Service,Software,206,
http://statistics.data.gov.uk/id/local-authority/12UE,Huntingdonshire District Council,14/04/2016,187872,7008724,5,570,Idox,CR481134,Imd Shared Service,Software,206,
http://statistics.data.gov.uk/id/local-authority/12UE,Huntingdonshire District Council,28/04/2016,188402,3731,5,"5,994.00",Intecpublicsector,CR478150,Imd Shared Service,Software,206,
http://statistics.data.gov.uk/id/local-authority/12UE,Huntingdonshire District Council,28/04/2016,188403,91365519,5,"31,205.88",Northgatepublic Services Uk Ltd,CR028925,Imd Shared Service,Software,206,
http://statistics.data.gov.uk/id/local-authority/12UE,Huntingdonshire District Council,28/04/2016,188405,91368818,5,"31,205.88",Northgatepublic Services Uk Ltd,CR028925,Imd Shared Service,Software,206,
http://statistics.data.gov.uk/id/local-authority/12UE,Huntingdonshire District Council,28/04/2016,188404,50028464,5,"-31,205.88",Northgatepublic Services Uk Ltd,CR028925,Imd Shared Service,Software,206,
http://statistics.data.gov.uk/id/local-authority/12UE,Huntingdonshire District Council,28/04/2016,188108,923469-066A,5,"7,267.60",Virgin Media Business/Cpsn,CR455148,Imd Shared Service,I T Line Rental,248,
http://statistics.data.gov.uk/id/local-authority/12UE,Huntingdonshire District Council,21/04/2016,186688,JBC/27905/4663/,5,"1,834.63",J Breheny Contractors Ltd,CR000314,Industrial Properties,Building Mtce,303,
http://statistics.data.gov.uk/id/local-authority/12UE,Huntingdonshire District Council,07/04/2016,186844,1230268258,5,16.8,Orange Airtime,CR455799,Information Manager,Telephone &Mobile Phonecharges,240,
http://statistics.data.gov.uk/id/local-authority/12UE,Huntingdonshire District Council,28/04/2016,188399,10667309,5,"11,340.00",Cambridgeshire County Council,CR017440,Information Manager,Subcontractors,777,
http://statistics.data.gov.uk/id/local-authority/12UE,Huntingdonshire District Council,28/04/2016,187877,13871,5,385.02,Jade Security Services Ltd,CR422256,Interest Received,Cash Collection,702,
http://statistics.data.gov.uk/id/local-authority/12UE,Huntingdonshire District Council,07/04/2016,187397,35618,5,"2,847.60",Caterfix Ltd,CR480775,Leisure Centres Capital,Building Mtce,303,
http://statistics.data.gov.uk/id/local-authority/12UE,Huntingdonshire District Council,07/04/2016,186524,S3076179,5,957.6,First In Service Ltd,CR422285,Leisure Centres Capital,Building Mtce,303,
http://statistics.data.gov.uk/id/local-authority/12UE,Huntingdonshire District Council,07/04/2016,187229,AR-664000116,5,307.2,Gantner Electronics Ltd,CR479042,Leisure Centres Capital,Building Mtce,303,
http://statistics.data.gov.uk/id/local-authority/12UE,Huntingdonshire District Council,07/04/2016,187162,029879ST.N,5,"4,020.00",Leisure Innovations Limited,CR422869,Leisure Centres Capital,Building Mtce,303,
http://statistics.data.gov.uk/id/local-authority/12UE,Huntingdonshire District Council,28/04/2016,188318,9570,5,"2,673.58",Roger Wilson Electronics,CR028041,Leisure Centres Capital,Building Mtce,303,
http://statistics.data.gov.uk/id/local-authority/12UE,Huntingdonshire District Council,21/04/2016,186682,JBC/27901/4663/,5,828,J Breheny Contractors Ltd,CR000314,Leisure Centres Capital,Sitework,359,
http://statistics.data.gov.uk/id/local-authority/12UE,Huntingdonshire District Council,07/04/2016,187124,RQ1137073,5,"1,138.80",Ves,CR455769,Leisure Centres Capital,Plant & Equipment Maintenance,380,
http://statistics.data.gov.uk/id/local-authority/12UE,Huntingdonshire District Council,07/04/2016,186457,3078659,5,"7,194.00",First In Service Ltd,CR422285,Leisure Centres Capital,Equipment,500,
http://statistics.data.gov.uk/id/local-authority/12UE,Huntingdonshire District Council,07/04/2016,186904,16070 - 220503,5,674.4,Bigprinting,CR416383,Leisure Centres Overall,Printing (External),220,
http://statistics.data.gov.uk/id/local-authority/12UE,Huntingdonshire District Council,07/04/2016,186888,39161,5,149.4,Clanpress King'S Lynn Ltd,CR413516,Leisure Centres Overall,Printing (External),220,
http://statistics.data.gov.uk/id/local-authority/12UE,Huntingdonshire District Council,07/04/2016,187284,IN16PS16001721,5,"2,729.21",Whistl Uk Ltd,CR479965,Leisure Centres Overall,Postage,231,
http://statistics.data.gov.uk/id/local-authority/12UE,Huntingdonshire District Council,07/04/2016,186844,1230268258,5,40.76,Orange Airtime,CR455799,Leisure Centres Overall,Telephone &Mobile Phonecharges,240,
http://statistics.data.gov.uk/id/local-authority/12UE,Huntingdonshire District Council,07/04/2016,187134,55524473,5,600,Archant Herts & Cambs,CR415764,Leisure Centres Overall,Advertising/Promoting Services,255,
http://statistics.data.gov.uk/id/local-authority/12UE,Huntingdonshire District Council,07/04/2016,187165,55514934,5,371.7,Archant Herts & Cambs,CR415764,Leisure Centres Overall,Advertising/Promoting Services,255,
http://statistics.data.gov.uk/id/local-authority/12UE,Huntingdonshire District Council,07/04/2016,187163,55515018,5,257.15,Archant Herts & Cambs,CR415764,Leisure Centres Overall,Advertising/Promoting Services,255,
http://statistics.data.gov.uk/id/local-authority/12UE,Huntingdonshire District Council,21/04/2016,188109,30462,5,905.94,Communications Solutions Uk Ltd,COMMUNIC,Leisure Centres Overall,Equipment,500,
http://statistics.data.gov.uk/id/local-authority/12UE,Huntingdonshire District Council,28/04/2016,188033,8279,5,250,Starlite Roadshow,CR024127,Leisure Centres Overall,Entertainments Inc Cable Tv,744,
http://statistics.data.gov.uk/id/local-authority/12UE,Huntingdonshire District Council,07/04/2016,187167,1025026,5,"1,118.76",Taylor Made Designs,CR417271,Leisure Development,Protective Clothing & Uniforms,163,
http://statistics.data.gov.uk/id/local-authority/12UE,Huntingdonshire District Council,07/04/2016,186726,39206,5,614,Clanpress King'S Lynn Ltd,CR413516,Leisure Development,Printing (External),220,
http://statistics.data.gov.uk/id/local-authority/12UE,Huntingdonshire District Council,07/04/2016,186844,1230268258,5,33.6,Orange Airtime,CR455799,Leisure Development,Telephone &Mobile Phonecharges,240,
http://statistics.data.gov.uk/id/local-authority/12UE,Huntingdonshire District Council,07/04/2016,187089,8,5,100,Dance Action,CR422690,Leisure Development,Hire Of Rooms,411,
http://statistics.data.gov.uk/id/local-authority/12UE,Huntingdonshire District Council,14/04/2016,187796,104,5,249,Huntingdon Gymnastics Club,CR478042,Leisure Development,Hire Of Rooms,411,
http://statistics.data.gov.uk/id/local-authority/12UE,Huntingdonshire District Council,07/04/2016,187089,8,5,150,Dance Action,CR422690,Leisure Development,Instructors/Tutors,720,
http://statistics.data.gov.uk/id/local-authority/12UE,Huntingdonshire District Council,14/04/2016,187796,104,5,592.85,Huntingdon Gymnastics Club,CR478042,Leisure Development,Instructors/Tutors,720,
http://statistics.data.gov.uk/id/local-authority/12UE,Huntingdonshire District Council,07/04/2016,186908,2447,5,"1,794.00",Cycling Projects,CR455898,Leisure Services Capital,Equipment,500,
http://statistics.data.gov.uk/id/local-authority/12UE,Huntingdonshire District Council,07/04/2016,186084,6003281478,5,320.6,Capita Business Services Ltd,CR410639,Licences,Software,206,
http://statistics.data.gov.uk/id/local-authority/12UE,Huntingdonshire District Council,07/04/2016,186844,1230268258,5,7.2,Orange Airtime,CR455799,Licences,Telephone &Mobile Phonecharges,240,
http://statistics.data.gov.uk/id/local-authority/12UE,Huntingdonshire District Council,07/04/2016,187364,3477,5,"1,750.00",Adams Autos,CR422066,Licences,Vehicle Inspection,618,
http://statistics.data.gov.uk/id/local-authority/12UE,Huntingdonshire District Council,07/04/2016,186497,S2016/24,5,774,James Button & Co,CR405456,Licences,Corporate Subscriptions,754,
http://statistics.data.gov.uk/id/local-authority/12UE,Huntingdonshire District Council,28/04/2016,187432,2016/1028,5,"2,570.58",Jba Consulting,CR423103,Local Development Framework,Consultants,711,
http://statistics.data.gov.uk/id/local-authority/12UE,Huntingdonshire District Council,07/04/2016,187200,16084,5,"1,740.00",Pos Enterprises,CR413287,Local Development Framework,Corporate Subscriptions,754,
http://statistics.data.gov.uk/id/local-authority/12UE,Huntingdonshire District Council,07/04/2016,186844,1230268258,5,16.8,Orange Airtime,CR455799,Markets,Telephone &Mobile Phonecharges,240,
http://statistics.data.gov.uk/id/local-authority/12UE,Huntingdonshire District Council,07/04/2016,187292,16105,5,360,Bigprinting,CR416383,Markets,Signs,565,
http://statistics.data.gov.uk/id/local-authority/12UE,Huntingdonshire District Council,07/04/2016,186844,1230268258,5,36.35,Orange Airtime,CR455799,Member Allowances & Support,Telephone &Mobile Phonecharges,240,
http://statistics.data.gov.uk/id/local-authority/12UE,Huntingdonshire District Council,07/04/2016,187286,900736334,5,807.04,Portakabin Ltd,CR478566,Miscellaneous Grants,Grants (Paid Out),800,
http://statistics.data.gov.uk/id/local-authority/12UE,Huntingdonshire District Council,21/04/2016,187712,2939,5,405.58,Newlyn Plc,CR409114,N N D R Administration,Bailiffs,703,
http://statistics.data.gov.uk/id/local-authority/12UE,Huntingdonshire District Council,07/04/2016,185653,EMP6171,5,274,E M Publishing Co Uk,CR415750,Nuisances,Corporate Subscriptions,754,
http://statistics.data.gov.uk/id/local-authority/12UE,Huntingdonshire District Council,07/04/2016,187336,JBC/27949/4663/,5,"2,210.64",J Breheny Contractors Ltd,CR000314,Oak Tree Health Centre,Building Mtce,303,
http://statistics.data.gov.uk/id/local-authority/12UE,Huntingdonshire District Council,07/04/2016,185699,CD970024506,5,282,Omega Red Group,CR411029,Oak Tree Health Centre,Building Mtce,303,
http://statistics.data.gov.uk/id/local-authority/12UE,Huntingdonshire District Council,07/04/2016,186844,1230268258,5,16.8,Orange Airtime,CR455799,Off Street Parking,Telephone &Mobile Phonecharges,240,
http://statistics.data.gov.uk/id/local-authority/12UE,Huntingdonshire District Council,07/04/2016,187335,JBC/27946/4663/,5,"1,977.29",J Breheny Contractors Ltd,CR000314,Off Street Parking,Sitework,359,
http://statistics.data.gov.uk/id/local-authority/12UE,Huntingdonshire District Council,21/04/2016,186690,JBC/27904/4663/,5,"1,128.01",J Breheny Contractors Ltd,CR000314,Off Street Parking,Sitework,359,
http://statistics.data.gov.uk/id/local-authority/12UE,Huntingdonshire District Council,21/04/2016,186699,JBC/27895/4663,5,804.01,J Breheny Contractors Ltd,CR000314,Off Street Parking,Sitework,359,
http://statistics.data.gov.uk/id/local-authority/12UE,Huntingdonshire District Council,07/04/2016,187345,JBC/27947/4663/,5,459.94,J Breheny Contractors Ltd,CR000314,Off Street Parking,Sitework,359,
http://statistics.data.gov.uk/id/local-authority/12UE,Huntingdonshire District Council,21/04/2016,186697,JBC/27897/4663,5,426.42,J Breheny Contractors Ltd,CR000314,Off Street Parking,Sitework,359,
http://statistics.data.gov.uk/id/local-authority/12UE,Huntingdonshire District Council,21/04/2016,186695,JBC/27899/4663,5,362.74,J Breheny Contractors Ltd,CR000314,Off Street Parking,Sitework,359,
http://statistics.data.gov.uk/id/local-authority/12UE,Huntingdonshire District Council,21/04/2016,188007,4454,5,"1,838.52",Oastlodge Ltd,CR479114,Off Street Parking,Land Lease,416,
http://statistics.data.gov.uk/id/local-authority/12UE,Huntingdonshire District Council,14/04/2016,187689,11398241360,5,261.5,E-On Energy,CR416430,Off Street Parking,Electricity,420,
http://statistics.data.gov.uk/id/local-authority/12UE,Huntingdonshire District Council,07/04/2016,187264,321225941,5,585.86,Swalec,CR407130,Off Street Parking,Electricity,420,
http://statistics.data.gov.uk/id/local-authority/12UE,Huntingdonshire District Council,07/04/2016,187188,491225588,5,571.23,Swalec,CR407130,Off Street Parking,Electricity,420,
http://statistics.data.gov.uk/id/local-authority/12UE,Huntingdonshire District Council,28/04/2016,188382,91226466,5,310.61,Swalec,CR407130,Off Street Parking,Electricity,420,
http://statistics.data.gov.uk/id/local-authority/12UE,Huntingdonshire District Council,28/04/2016,188173,548482,5,412.24,Ecocleen Services Limited,CR406985,Off Street Parking,Building Cleaning,440,
http://statistics.data.gov.uk/id/local-authority/12UE,Huntingdonshire District Council,28/04/2016,188440,112085,5,257.07,Cale Briparc Ltd,CR401137,Off Street Parking,Equipment Maintenance,511,
http://statistics.data.gov.uk/id/local-authority/12UE,Huntingdonshire District Council,07/04/2016,187306,111797,5,"3,610.33",Cale Briparc Ltd,CR401137,Off Street Parking,Car Park Machines,522,
http://statistics.data.gov.uk/id/local-authority/12UE,Huntingdonshire District Council,07/04/2016,187307,86085,5,750,Cambridgeshire County Council,CR006678,Off Street Parking,Car Park Machines,522,
http://statistics.data.gov.uk/id/local-authority/12UE,Huntingdonshire District Council,07/04/2016,186040,31273916,5,272.89,Swalec,CR407130,On Street Parking,Electricity,420,
http://statistics.data.gov.uk/id/local-authority/12UE,Huntingdonshire District Council,07/04/2016,187167,1025026,5,"1,650.52",Taylor Made Designs,CR417271,One Leisure Huntingdon,Protective Clothing & Uniforms,163,
http://statistics.data.gov.uk/id/local-authority/12UE,Huntingdonshire District Council,28/04/2016,188009,16004416,5,"2,592.00",Technogym Uk Ltd,CR033037,One Leisure Huntingdon,Software,206,
http://statistics.data.gov.uk/id/local-authority/12UE,Huntingdonshire District Council,07/04/2016,186888,39161,5,244,Clanpress King'S Lynn Ltd,CR413516,One Leisure Huntingdon,Printing (External),220,
http://statistics.data.gov.uk/id/local-authority/12UE,Huntingdonshire District Council,07/04/2016,186793,13271,5,"1,440.00",Roi Software Distribution Ltd,CR422116,One Leisure Huntingdon,Printing (External),220,
http://statistics.data.gov.uk/id/local-authority/12UE,Huntingdonshire District Council,28/04/2016,188054,INV000503,5,60,Media Imaging Solutions,CR455674,One Leisure Huntingdon,Advertising/Promoting Services,255,
http://statistics.data.gov.uk/id/local-authority/12UE,Huntingdonshire District Council,07/04/2016,186783,1317,5,90,Talk Twenty 1,CR422876,One Leisure Huntingdon,Advertising/Promoting Services,255,
http://statistics.data.gov.uk/id/local-authority/12UE,Huntingdonshire District Council,07/04/2016,187212,1300,5,90,Talk Twenty 1,CR422876,One Leisure Huntingdon,Advertising/Promoting Services,255,
http://statistics.data.gov.uk/id/local-authority/12UE,Huntingdonshire District Council,07/04/2016,187282,1118,5,"1,070.00",Velotec,CR423462,One Leisure Huntingdon,Advertising/Promoting Services,255,
http://statistics.data.gov.uk/id/local-authority/12UE,Huntingdonshire District Council,07/04/2016,187201,9562,5,"1,296.00",Roger Wilson Electronics,CR028041,One Leisure Huntingdon,Building Mtce,303,
http://statistics.data.gov.uk/id/local-authority/12UE,Huntingdonshire District Council,26/04/2016,188347,65916,5,"4,894.41",Haven Power Ltd,CR455940,One Leisure Huntingdon,Electricity,420,
http://statistics.data.gov.uk/id/local-authority/12UE,Huntingdonshire District Council,28/04/2016,188383,381239505,5,"3,349.09",Swalec,CR407130,One Leisure Huntingdon,Electricity,420,
http://statistics.data.gov.uk/id/local-authority/12UE,Huntingdonshire District Council,21/04/2016,187718,12489088110,5,"1,490.16",E-On Energy,CR416430,One Leisure Huntingdon,Gas,421,
http://statistics.data.gov.uk/id/local-authority/12UE,Huntingdonshire District Council,21/04/2016,187727,12489028970,5,855.41,E-On Energy,CR416430,One Leisure Huntingdon,Gas,421,
http://statistics.data.gov.uk/id/local-authority/12UE,Huntingdonshire District Council,21/04/2016,188095,126877786,5,"2,483.95",Anglian Water,CR000071,One Leisure Huntingdon,Water & Sewerage,432,
http://statistics.data.gov.uk/id/local-authority/12UE,Huntingdonshire District Council,07/04/2016,187295,4626,5,"1,185.49",Enterprise Support Services Uk Ltd,CR422509,One Leisure Huntingdon,Building Cleaning,440,
http://statistics.data.gov.uk/id/local-authority/12UE,Huntingdonshire District Council,07/04/2016,187097,48787,5,730.8,G4s Secure Solutions (Uk) Ltd,CR454030,One Leisure Huntingdon,Fire & Security,450,
http://statistics.data.gov.uk/id/local-authority/12UE,Huntingdonshire District Council,07/04/2016,187098,48786,5,730.8,G4s Secure Solutions (Uk) Ltd,CR454030,One Leisure Huntingdon,Fire & Security,450,
http://statistics.data.gov.uk/id/local-authority/12UE,Huntingdonshire District Council,07/04/2016,187118,BD523950,5,100,Pitney Bowes Finance Plc,CR019747,One Leisure Huntingdon,Equipment,500,
http://statistics.data.gov.uk/id/local-authority/12UE,Huntingdonshire District Council,28/04/2016,188039,16004451,5,"1,447.20",Technogym Uk Ltd,CR033037,One Leisure Huntingdon,Equipment,500,
http://statistics.data.gov.uk/id/local-authority/12UE,Huntingdonshire District Council,07/04/2016,186779,80417,5,"1,280.70",Servicesport (Uk) Ltd,CR422867,One Leisure Huntingdon,Equipment Maintenance,511,
http://statistics.data.gov.uk/id/local-authority/12UE,Huntingdonshire District Council,07/04/2016,187168,IN17278,5,"4,650.00",Airquee Ltd,CR416900,One Leisure Huntingdon,Sports Equipment,524,
http://statistics.data.gov.uk/id/local-authority/12UE,Huntingdonshire District Council,07/04/2016,186452,306411,5,9.66,South Lincs Food Service,CR033415,One Leisure Huntingdon,Materials,550,
http://statistics.data.gov.uk/id/local-authority/12UE,Huntingdonshire District Council,28/04/2016,187745,67111,5,146.11,Snackline Direct Ltd,CR478090,One Leisure Huntingdon,Bar Provisions,558,
http://statistics.data.gov.uk/id/local-authority/12UE,Huntingdonshire District Council,07/04/2016,186929,65947,5,155.73,Snackline Direct Ltd,CR478090,One Leisure Huntingdon,Bar Provisions,558,
http://statistics.data.gov.uk/id/local-authority/12UE,Huntingdonshire District Council,07/04/2016,186452,306411,5,199.2,South Lincs Food Service,CR033415,One Leisure Huntingdon,Bar Provisions,558,
http://statistics.data.gov.uk/id/local-authority/12UE,Huntingdonshire District Council,07/04/2016,186452,306411,5,161.46,South Lincs Food Service,CR033415,One Leisure Huntingdon,Catering Materials,559,
http://statistics.data.gov.uk/id/local-authority/12UE,Huntingdonshire District Council,28/04/2016,187746,67110,5,481.99,Snackline Direct Ltd,CR478090,One Leisure Huntingdon,Vending Materials,560,
http://statistics.data.gov.uk/id/local-authority/12UE,Huntingdonshire District Council,07/04/2016,187233,92254660,5,745.08,Speedo International Limited,CR41427,One Leisure Huntingdon,Materials For Resale,570,
http://statistics.data.gov.uk/id/local-authority/12UE,Huntingdonshire District Council,28/04/2016,187745,67111,5,172.55,Snackline Direct Ltd,CR478090,One Leisure Huntingdon,Confectionery,572,
http://statistics.data.gov.uk/id/local-authority/12UE,Huntingdonshire District Council,07/04/2016,186929,65947,5,120.5,Snackline Direct Ltd,CR478090,One Leisure Huntingdon,Confectionery,572,
http://statistics.data.gov.uk/id/local-authority/12UE,Huntingdonshire District Council,07/04/2016,186452,306411,5,36.65,South Lincs Food Service,CR033415,One Leisure Huntingdon,Confectionery,572,
http://statistics.data.gov.uk/id/local-authority/12UE,Huntingdonshire District Council,28/04/2016,187877,13871,5,301.32,Jade Security Services Ltd,CR422256,One Leisure Huntingdon,Cash Collection,702,
http://statistics.data.gov.uk/id/local-authority/12UE,Huntingdonshire District Council,14/04/2016,187785,2969088,5,206.04,Phonographic Performance Ltd,CR411659,One Leisure Huntingdon,Licences,730,
http://statistics.data.gov.uk/id/local-authority/12UE,Huntingdonshire District Council,07/04/2016,187227,UKA_PPL/97789,5,"4,071.60",Ukactive,CR003876,One Leisure Huntingdon,Licences,730,
http://statistics.data.gov.uk/id/local-authority/12UE,Huntingdonshire District Council,07/04/2016,187167,1025026,5,825.24,Taylor Made Designs,CR417271,One Leisure Ramsey,Protective Clothing & Uniforms,163,
http://statistics.data.gov.uk/id/local-authority/12UE,Huntingdonshire District Council,28/04/2016,188011,16004419,5,"2,592.00",Technogym Uk Ltd,CR033037,One Leisure Ramsey,Software,206,
http://statistics.data.gov.uk/id/local-authority/12UE,Huntingdonshire District Council,27/04/2016,188387,15006670,5,"2,592.00",Technogym Uk Ltd,CR033037,One Leisure Ramsey,Software,206,
http://statistics.data.gov.uk/id/local-authority/12UE,Huntingdonshire District Council,07/04/2016,186888,39161,5,176,Clanpress King'S Lynn Ltd,CR413516,One Leisure Ramsey,Printing (External),220,
http://statistics.data.gov.uk/id/local-authority/12UE,Huntingdonshire District Council,07/04/2016,186793,13271,5,720,Roi Software Distribution Ltd,CR422116,One Leisure Ramsey,Printing (External),220,
http://statistics.data.gov.uk/id/local-authority/12UE,Huntingdonshire District Council,28/04/2016,188054,INV000503,5,60,Media Imaging Solutions,CR455674,One Leisure Ramsey,Advertising/Promoting Services,255,
http://statistics.data.gov.uk/id/local-authority/12UE,Huntingdonshire District Council,07/04/2016,186783,1317,5,90,Talk Twenty 1,CR422876,One Leisure Ramsey,Advertising/Promoting Services,255,
http://statistics.data.gov.uk/id/local-authority/12UE,Huntingdonshire District Council,07/04/2016,187212,1300,5,90,Talk Twenty 1,CR422876,One Leisure Ramsey,Advertising/Promoting Services,255,
http://statistics.data.gov.uk/id/local-authority/12UE,Huntingdonshire District Council,07/04/2016,186476,101753,5,"1,782.00",Menerga Technical Services Ltd,CR033494,One Leisure Ramsey,Plant & Equipment Maintenance,380,
http://statistics.data.gov.uk/id/local-authority/12UE,Huntingdonshire District Council,28/04/2016,188391,341225796,5,"2,954.12",Swalec,CR407130,One Leisure Ramsey,Electricity,420,
http://statistics.data.gov.uk/id/local-authority/12UE,Huntingdonshire District Council,21/04/2016,187721,12489090790,5,"1,774.31",E-On Energy,CR416430,One Leisure Ramsey,Gas,421,
http://statistics.data.gov.uk/id/local-authority/12UE,Huntingdonshire District Council,28/04/2016,188282,845,6,"1,968.23",Abbey College,CR128984,One Leisure Ramsey,Water & Sewerage,432,
http://statistics.data.gov.uk/id/local-authority/12UE,Huntingdonshire District Council,07/04/2016,187295,4626,5,798.4,Enterprise Support Services Uk Ltd,CR422509,One Leisure Ramsey,Building Cleaning,440,
http://statistics.data.gov.uk/id/local-authority/12UE,Huntingdonshire District Council,07/04/2016,186704,159453,5,250.66,Chemaide Limited,CR416597,One Leisure Ramsey,Cleaning Materials,443,
http://statistics.data.gov.uk/id/local-authority/12UE,Huntingdonshire District Council,07/04/2016,187118,BD523950,5,50,Pitney Bowes Finance Plc,CR019747,One Leisure Ramsey,Equipment,500,
http://statistics.data.gov.uk/id/local-authority/12UE,Huntingdonshire District Council,28/04/2016,188039,16004451,5,723.6,Technogym Uk Ltd,CR033037,One Leisure Ramsey,Equipment,500,
http://statistics.data.gov.uk/id/local-authority/12UE,Huntingdonshire District Council,07/04/2016,187219,63473835,5,655.7,Phs Group Ltd,CR032018,One Leisure Ramsey,Equipment Hire,507,
http://statistics.data.gov.uk/id/local-authority/12UE,Huntingdonshire District Council,07/04/2016,186778,80418,5,691.52,Servicesport (Uk) Ltd,CR422867,One Leisure Ramsey,Equipment Maintenance,511,
http://statistics.data.gov.uk/id/local-authority/12UE,Huntingdonshire District Council,27/04/2016,188384,CREDIT REF47418,5,"6,642.08",Technogym Uk Ltd,CR033037,One Leisure Ramsey,Equipment Maintenance,511,
http://statistics.data.gov.uk/id/local-authority/12UE,Huntingdonshire District Council,07/04/2016,595908,28631,2,73.92,REDACTED PERSONAL DATA,CR479877,One Leisure Ramsey,Materials,550,
http://statistics.data.gov.uk/id/local-authority/12UE,Huntingdonshire District Council,28/04/2016,187877,13871,5,66.96,Jade Security Services Ltd,CR422256,One Leisure Ramsey,Cash Collection,702,
http://statistics.data.gov.uk/id/local-authority/12UE,Huntingdonshire District Council,14/04/2016,187785,2969088,5,288.82,Phonographic Performance Ltd,CR411659,One Leisure Ramsey,Licences,730,
http://statistics.data.gov.uk/id/local-authority/12UE,Huntingdonshire District Council,07/04/2016,187227,UKA_PPL/97789,5,"2,505.60",Ukactive,CR003876,One Leisure Ramsey,Licences,730,
http://statistics.data.gov.uk/id/local-authority/12UE,Huntingdonshire District Council,07/04/2016,187167,1025026,5,825.24,Taylor Made Designs,CR417271,One Leisure Sawtry,Protective Clothing & Uniforms,163,
http://statistics.data.gov.uk/id/local-authority/12UE,Huntingdonshire District Council,28/04/2016,188008,16004415,5,"2,592.00",Technogym Uk Ltd,CR033037,One Leisure Sawtry,Software,206,
http://statistics.data.gov.uk/id/local-authority/12UE,Huntingdonshire District Council,27/04/2016,188388,15006672,5,"2,592.00",Technogym Uk Ltd,CR033037,One Leisure Sawtry,Software,206,
http://statistics.data.gov.uk/id/local-authority/12UE,Huntingdonshire District Council,07/04/2016,186888,39161,5,189,Clanpress King'S Lynn Ltd,CR413516,One Leisure Sawtry,Printing (External),220,
http://statistics.data.gov.uk/id/local-authority/12UE,Huntingdonshire District Council,07/04/2016,186793,13271,5,720,Roi Software Distribution Ltd,CR422116,One Leisure Sawtry,Printing (External),220,
http://statistics.data.gov.uk/id/local-authority/12UE,Huntingdonshire District Council,28/04/2016,188054,INV000503,5,60,Media Imaging Solutions,CR455674,One Leisure Sawtry,Advertising/Promoting Services,255,
http://statistics.data.gov.uk/id/local-authority/12UE,Huntingdonshire District Council,07/04/2016,186783,1317,5,90,Talk Twenty 1,CR422876,One Leisure Sawtry,Advertising/Promoting Services,255,
http://statistics.data.gov.uk/id/local-authority/12UE,Huntingdonshire District Council,07/04/2016,187212,1300,5,90,Talk Twenty 1,CR422876,One Leisure Sawtry,Advertising/Promoting Services,255,
http://statistics.data.gov.uk/id/local-authority/12UE,Huntingdonshire District Council,28/04/2016,188022,4,5,390,Richard Sistrom Painting & Decorating,CR422887,One Leisure Sawtry,Building Mtce,303,
http://statistics.data.gov.uk/id/local-authority/12UE,Huntingdonshire District Council,28/04/2016,188322,9574,5,"1,423.20",Roger Wilson Electronics,CR028041,One Leisure Sawtry,Building Mtce,303,
http://statistics.data.gov.uk/id/local-authority/12UE,Huntingdonshire District Council,07/04/2016,187339,376,5,"15,780.00",King Ramps Ltd,CR423414,One Leisure Sawtry,Playground Equipment,360,
http://statistics.data.gov.uk/id/local-authority/12UE,Huntingdonshire District Council,28/04/2016,188390,941240466,5,"3,738.78",Swalec,CR407130,One Leisure Sawtry,Electricity,420,
http://statistics.data.gov.uk/id/local-authority/12UE,Huntingdonshire District Council,21/04/2016,187726,12489088700,5,"1,473.86",E-On Energy,CR416430,One Leisure Sawtry,Gas,421,
http://statistics.data.gov.uk/id/local-authority/12UE,Huntingdonshire District Council,07/04/2016,187295,4626,5,874.02,Enterprise Support Services Uk Ltd,CR422509,One Leisure Sawtry,Building Cleaning,440,
http://statistics.data.gov.uk/id/local-authority/12UE,Huntingdonshire District Council,07/04/2016,187118,BD523950,5,50,Pitney Bowes Finance Plc,CR019747,One Leisure Sawtry,Equipment,500,
http://statistics.data.gov.uk/id/local-authority/12UE,Huntingdonshire District Council,28/04/2016,188039,16004451,5,723.6,Technogym Uk Ltd,CR033037,One Leisure Sawtry,Equipment,500,
http://statistics.data.gov.uk/id/local-authority/12UE,Huntingdonshire District Council,07/04/2016,186846,63474472,5,795.41,Phs Group Ltd,CR032018,One Leisure Sawtry,Equipment Hire,507,
http://statistics.data.gov.uk/id/local-authority/12UE,Huntingdonshire District Council,07/04/2016,186777,80419,5,633.31,Servicesport (Uk) Ltd,CR422867,One Leisure Sawtry,Equipment Maintenance,511,
http://statistics.data.gov.uk/id/local-authority/12UE,Huntingdonshire District Council,07/04/2016,187231,7051133,5,405.04,Startrac,CR429227,One Leisure Sawtry,Equipment Maintenance,511,
http://statistics.data.gov.uk/id/local-authority/12UE,Huntingdonshire District Council,07/04/2016,595908,28631,2,73.92,REDACTED PERSONAL DATA,CR479877,One Leisure Sawtry,Materials,550,
http://statistics.data.gov.uk/id/local-authority/12UE,Huntingdonshire District Council,07/04/2016,187131,38SI 3821506,5,452.7,Brenntag Uk Ltd,CR015017,One Leisure Sawtry,Chemicals,551,
http://statistics.data.gov.uk/id/local-authority/12UE,Huntingdonshire District Council,28/04/2016,187877,13871,5,66.96,Jade Security Services Ltd,CR422256,One Leisure Sawtry,Cash Collection,702,
http://statistics.data.gov.uk/id/local-authority/12UE,Huntingdonshire District Council,14/04/2016,187785,2969088,5,288.82,Phonographic Performance Ltd,CR411659,One Leisure Sawtry,Licences,730,
http://statistics.data.gov.uk/id/local-authority/12UE,Huntingdonshire District Council,07/04/2016,187227,UKA_PPL/97789,5,"2,349.00",Ukactive,CR003876,One Leisure Sawtry,Licences,730,
http://statistics.data.gov.uk/id/local-authority/12UE,Huntingdonshire District Council,07/04/2016,187167,1025026,5,"1,650.52",Taylor Made Designs,CR417271,One Leisure St Ives,Protective Clothing & Uniforms,163,
http://statistics.data.gov.uk/id/local-authority/12UE,Huntingdonshire District Council,28/04/2016,188013,16004418,5,"2,592.00",Technogym Uk Ltd,CR033037,One Leisure St Ives,Software,206,
http://statistics.data.gov.uk/id/local-authority/12UE,Huntingdonshire District Council,07/04/2016,186888,39161,5,252,Clanpress King'S Lynn Ltd,CR413516,One Leisure St Ives,Printing (External),220,
http://statistics.data.gov.uk/id/local-authority/12UE,Huntingdonshire District Council,07/04/2016,186793,13271,5,"1,440.00",Roi Software Distribution Ltd,CR422116,One Leisure St Ives,Printing (External),220,
http://statistics.data.gov.uk/id/local-authority/12UE,Huntingdonshire District Council,07/04/2016,187116,3957009,1,64.11,Espo,CR006566,One Leisure St Ives,Stationery,225,
http://statistics.data.gov.uk/id/local-authority/12UE,Huntingdonshire District Council,07/04/2016,186844,1230268258,5,19.2,Orange Airtime,CR455799,One Leisure St Ives,Telephone &Mobile Phonecharges,240,
http://statistics.data.gov.uk/id/local-authority/12UE,Huntingdonshire District Council,07/04/2016,187216,V1959,5,660,Impie Ltd,CR480569,One Leisure St Ives,Advertising/Promoting Services,255,
http://statistics.data.gov.uk/id/local-authority/12UE,Huntingdonshire District Council,28/04/2016,188054,INV000503,5,60,Media Imaging Solutions,CR455674,One Leisure St Ives,Advertising/Promoting Services,255,
http://statistics.data.gov.uk/id/local-authority/12UE,Huntingdonshire District Council,07/04/2016,186783,1317,5,90,Talk Twenty 1,CR422876,One Leisure St Ives,Advertising/Promoting Services,255,
http://statistics.data.gov.uk/id/local-authority/12UE,Huntingdonshire District Council,07/04/2016,187212,1300,5,90,Talk Twenty 1,CR422876,One Leisure St Ives,Advertising/Promoting Services,255,
http://statistics.data.gov.uk/id/local-authority/12UE,Huntingdonshire District Council,14/04/2016,187429,667,5,"1,909.20",Pool Maintenance Ltd,CR422505,One Leisure St Ives,Building Mtce,303,
http://statistics.data.gov.uk/id/local-authority/12UE,Huntingdonshire District Council,07/04/2016,186848,664,5,311.4,Pool Maintenance Ltd,CR422505,One Leisure St Ives,Building Mtce,303,
http://statistics.data.gov.uk/id/local-authority/12UE,Huntingdonshire District Council,14/04/2016,187814,3,5,380,Richard Sistrom Painting & Decorating,CR422887,One Leisure St Ives,Building Mtce,303,
http://statistics.data.gov.uk/id/local-authority/12UE,Huntingdonshire District Council,07/04/2016,185976,9551,5,885.15,Roger Wilson Electronics,CR028041,One Leisure St Ives,Building Mtce,303,
http://statistics.data.gov.uk/id/local-authority/12UE,Huntingdonshire District Council,28/04/2016,188324,9569,5,"1,531.04",Roger Wilson Electronics,CR028041,One Leisure St Ives,Building Mtce,303,
http://statistics.data.gov.uk/id/local-authority/12UE,Huntingdonshire District Council,07/04/2016,186785,9557,5,375.9,Roger Wilson Electronics,CR028041,One Leisure St Ives,Building Mtce,303,
http://statistics.data.gov.uk/id/local-authority/12UE,Huntingdonshire District Council,07/04/2016,187126,17866,5,352.88,Warboys Services Ltd,CR000841,One Leisure St Ives,Building Mtce,303,
http://statistics.data.gov.uk/id/local-authority/12UE,Huntingdonshire District Council,07/04/2016,185890,3075785,5,"2,512.01",First In Service Ltd,CR422285,One Leisure St Ives,Plant & Equipment Maintenance,380,
http://statistics.data.gov.uk/id/local-authority/12UE,Huntingdonshire District Council,07/04/2016,187103,INV001504,5,893.94,Lynx Bowling Services,CR455532,One Leisure St Ives,Plant & Equipment Maintenance,380,
http://statistics.data.gov.uk/id/local-authority/12UE,Huntingdonshire District Council,26/04/2016,188346,65919,5,"8,095.91",Haven Power Ltd,CR455940,One Leisure St Ives,Electricity,420,
http://statistics.data.gov.uk/id/local-authority/12UE,Huntingdonshire District Council,26/04/2016,188348,65922,5,"4,080.46",Haven Power Ltd,CR455940,One Leisure St Ives,Electricity,420,
http://statistics.data.gov.uk/id/local-authority/12UE,Huntingdonshire District Council,21/04/2016,187722,12489090950,5,"4,803.31",E-On Energy,CR416430,One Leisure St Ives,Gas,421,
http://statistics.data.gov.uk/id/local-authority/12UE,Huntingdonshire District Council,21/04/2016,187724,12489089510,5,719.15,E-On Energy,CR416430,One Leisure St Ives,Gas,421,
http://statistics.data.gov.uk/id/local-authority/12UE,Huntingdonshire District Council,07/04/2016,187209,1.00018E+11,5,"5,880.81",Anglian Water,CR000071,One Leisure St Ives,Water & Sewerage,432,
http://statistics.data.gov.uk/id/local-authority/12UE,Huntingdonshire District Council,07/04/2016,187353,6006503000,5,"3,562.97",Cambridge Water Plc,CR000172,One Leisure St Ives,Water & Sewerage,432,
http://statistics.data.gov.uk/id/local-authority/12UE,Huntingdonshire District Council,07/04/2016,187295,4626,5,"3,842.83",Enterprise Support Services Uk Ltd,CR422509,One Leisure St Ives,Building Cleaning,440,
http://statistics.data.gov.uk/id/local-authority/12UE,Huntingdonshire District Council,07/04/2016,187116,3957009,1,279.22,Espo,CR006566,One Leisure St Ives,Cleaning Materials,443,
http://statistics.data.gov.uk/id/local-authority/12UE,Huntingdonshire District Council,07/04/2016,187112,309576,5,4.27,South Lincs Food Service,CR033415,One Leisure St Ives,Cleaning Materials,443,
http://statistics.data.gov.uk/id/local-authority/12UE,Huntingdonshire District Council,28/04/2016,187815,708054201,5,610.37,Honeywell Novar Systems,CR406826,One Leisure St Ives,Fire & Security,450,
http://statistics.data.gov.uk/id/local-authority/12UE,Huntingdonshire District Council,07/04/2016,187683,INV-3208,5,"1,198.80",Anglia Coffee Solutions Ltd,CR456003,One Leisure St Ives,Equipment,500,
http://statistics.data.gov.uk/id/local-authority/12UE,Huntingdonshire District Council,07/04/2016,187116,3957009,1,41.16,Espo,CR006566,One Leisure St Ives,Equipment,500,
http://statistics.data.gov.uk/id/local-authority/12UE,Huntingdonshire District Council,07/04/2016,187118,BD523950,5,213,Pitney Bowes Finance Plc,CR019747,One Leisure St Ives,Equipment,500,
http://statistics.data.gov.uk/id/local-authority/12UE,Huntingdonshire District Council,07/04/2016,185976,9551,5,"2,141.08",Roger Wilson Electronics,CR028041,One Leisure St Ives,Equipment,500,
http://statistics.data.gov.uk/id/local-authority/12UE,Huntingdonshire District Council,28/04/2016,188039,16004451,5,"2,170.80",Technogym Uk Ltd,CR033037,One Leisure St Ives,Equipment,500,
http://statistics.data.gov.uk/id/local-authority/12UE,Huntingdonshire District Council,21/04/2016,188062,76214,5,668.4,Gladstone Mrm,CR405717,One Leisure St Ives,Equipment Hire,507,
http://statistics.data.gov.uk/id/local-authority/12UE,Huntingdonshire District Council,07/04/2016,187221,63475866,5,"1,246.51",Phs Group Ltd,CR032018,One Leisure St Ives,Equipment Hire,507,
http://statistics.data.gov.uk/id/local-authority/12UE,Huntingdonshire District Council,07/04/2016,187103,INV001504,5,"1,250.00",Lynx Bowling Services,CR455532,One Leisure St Ives,Equipment Maintenance,511,
http://statistics.data.gov.uk/id/local-authority/12UE,Huntingdonshire District Council,07/04/2016,186691,279042,5,607.2,Platform Service & Repair,CR422480,One Leisure St Ives,Equipment Maintenance,511,
http://statistics.data.gov.uk/id/local-authority/12UE,Huntingdonshire District Council,07/04/2016,186776,80420,5,"2,068.80",Servicesport (Uk) Ltd,CR422867,One Leisure St Ives,Equipment Maintenance,511,
http://statistics.data.gov.uk/id/local-authority/12UE,Huntingdonshire District Council,27/04/2016,188385,15000364,5,"-11,826.08",Technogym Uk Ltd,CR033037,One Leisure St Ives,Equipment Maintenance,511,
http://statistics.data.gov.uk/id/local-authority/12UE,Huntingdonshire District Council,07/04/2016,187385,2102454284,5,66.86,Booker Cash And Carry,CR027611,One Leisure St Ives,Materials,550,
http://statistics.data.gov.uk/id/local-authority/12UE,Huntingdonshire District Council,07/04/2016,187122,2102448055,5,71.98,Booker Cash And Carry,CR027611,One Leisure St Ives,Materials,550,
http://statistics.data.gov.uk/id/local-authority/12UE,Huntingdonshire District Council,07/04/2016,186923,INV039935,5,45.5,Slush Puppie Ltd,CR455958,One Leisure St Ives,Materials,550,
http://statistics.data.gov.uk/id/local-authority/12UE,Huntingdonshire District Council,07/04/2016,186414,INV039095,5,94.79,Slush Puppie Ltd,CR455958,One Leisure St Ives,Materials,550,
http://statistics.data.gov.uk/id/local-authority/12UE,Huntingdonshire District Council,07/04/2016,187112,309576,5,8.15,South Lincs Food Service,CR033415,One Leisure St Ives,Materials,550,
http://statistics.data.gov.uk/id/local-authority/12UE,Huntingdonshire District Council,07/04/2016,186941,309575,5,7.8,South Lincs Food Service,CR033415,One Leisure St Ives,Materials,550,
http://statistics.data.gov.uk/id/local-authority/12UE,Huntingdonshire District Council,07/04/2016,187385,2102454284,5,"1,108.09",Booker Cash And Carry,CR027611,One Leisure St Ives,Bar Provisions,558,
http://statistics.data.gov.uk/id/local-authority/12UE,Huntingdonshire District Council,07/04/2016,187122,2102448055,5,358.38,Booker Cash And Carry,CR027611,One Leisure St Ives,Bar Provisions,558,
http://statistics.data.gov.uk/id/local-authority/12UE,Huntingdonshire District Council,07/04/2016,186728,601997,5,"1,658.45",Lacons,CR422174,One Leisure St Ives,Bar Provisions,558,
http://statistics.data.gov.uk/id/local-authority/12UE,Huntingdonshire District Council,07/04/2016,187090,602987,5,570.14,Lacons,CR422174,One Leisure St Ives,Bar Provisions,558,
http://statistics.data.gov.uk/id/local-authority/12UE,Huntingdonshire District Council,07/04/2016,185974,600297,5,292.14,Lacons,CR422174,One Leisure St Ives,Bar Provisions,558,
http://statistics.data.gov.uk/id/local-authority/12UE,Huntingdonshire District Council,07/04/2016,186415,601220,5,238.08,Lacons,CR422174,One Leisure St Ives,Bar Provisions,558,
http://statistics.data.gov.uk/id/local-authority/12UE,Huntingdonshire District Council,21/04/2016,188073,140036,5,"1,097.14",Oakham Ales,CR422253,One Leisure St Ives,Bar Provisions,558,
http://statistics.data.gov.uk/id/local-authority/12UE,Huntingdonshire District Council,07/04/2016,186414,INV039095,5,184.44,Slush Puppie Ltd,CR455958,One Leisure St Ives,Bar Provisions,558,
http://statistics.data.gov.uk/id/local-authority/12UE,Huntingdonshire District Council,07/04/2016,187385,2102454284,5,97.44,Booker Cash And Carry,CR027611,One Leisure St Ives,Catering Materials,559,
http://statistics.data.gov.uk/id/local-authority/12UE,Huntingdonshire District Council,07/04/2016,187122,2102448055,5,14.22,Booker Cash And Carry,CR027611,One Leisure St Ives,Catering Materials,559,
http://statistics.data.gov.uk/id/local-authority/12UE,Huntingdonshire District Council,07/04/2016,186923,INV039935,5,368.88,Slush Puppie Ltd,CR455958,One Leisure St Ives,Catering Materials,559,
http://statistics.data.gov.uk/id/local-authority/12UE,Huntingdonshire District Council,07/04/2016,187112,309576,5,254.18,South Lincs Food Service,CR033415,One Leisure St Ives,Catering Materials,559,
http://statistics.data.gov.uk/id/local-authority/12UE,Huntingdonshire District Council,07/04/2016,186941,309575,5,233.49,South Lincs Food Service,CR033415,One Leisure St Ives,Catering Materials,559,
http://statistics.data.gov.uk/id/local-authority/12UE,Huntingdonshire District Council,07/04/2016,186755,66930,5,303.89,Snackline Direct Ltd,CR478090,One Leisure St Ives,Vending Materials,560,
http://statistics.data.gov.uk/id/local-authority/12UE,Huntingdonshire District Council,07/04/2016,186531,66735,5,274.93,Snackline Direct Ltd,CR478090,One Leisure St Ives,Vending Materials,560,
http://statistics.data.gov.uk/id/local-authority/12UE,Huntingdonshire District Council,07/04/2016,186728,601997,5,55.86,Lacons,CR422174,One Leisure St Ives,Gas Cylinders (Incl. Bars),567,
http://statistics.data.gov.uk/id/local-authority/12UE,Huntingdonshire District Council,07/04/2016,186415,601220,5,37.63,Lacons,CR422174,One Leisure St Ives,Gas Cylinders (Incl. Bars),567,
http://statistics.data.gov.uk/id/local-authority/12UE,Huntingdonshire District Council,07/04/2016,187385,2102454284,5,149.02,Booker Cash And Carry,CR027611,One Leisure St Ives,Confectionery,572,
http://statistics.data.gov.uk/id/local-authority/12UE,Huntingdonshire District Council,07/04/2016,186941,309575,5,10.75,South Lincs Food Service,CR033415,One Leisure St Ives,Confectionery,572,
http://statistics.data.gov.uk/id/local-authority/12UE,Huntingdonshire District Council,28/04/2016,187877,13871,5,200.88,Jade Security Services Ltd,CR422256,One Leisure St Ives,Cash Collection,702,
http://statistics.data.gov.uk/id/local-authority/12UE,Huntingdonshire District Council,28/04/2016,187396,SIV112623,5,297.54,Les Mills Uk,CR025826,One Leisure St Ives,Licences,730,
http://statistics.data.gov.uk/id/local-authority/12UE,Huntingdonshire District Council,14/04/2016,187785,2969088,5,998.8,Phonographic Performance Ltd,CR411659,One Leisure St Ives,Licences,730,
http://statistics.data.gov.uk/id/local-authority/12UE,Huntingdonshire District Council,07/04/2016,187227,UKA_PPL/97789,5,"5,495.47",Ukactive,CR003876,One Leisure St Ives,Licences,730,
http://statistics.data.gov.uk/id/local-authority/12UE,Huntingdonshire District Council,07/04/2016,187412,266,5,"1,773.80",2 Ton Productions,CR410213,One Leisure St Ives,Entertainments Inc Cable Tv,744,
http://statistics.data.gov.uk/id/local-authority/12UE,Huntingdonshire District Council,07/04/2016,187228,41217,5,300,Dings Entertainment,CR412228,One Leisure St Ives,Entertainments Inc Cable Tv,744,
http://statistics.data.gov.uk/id/local-authority/12UE,Huntingdonshire District Council,07/04/2016,187281,DBT015-2016,5,"9,089.60",Dreamboys London Ltd,CR423460,One Leisure St Ives,Entertainments Inc Cable Tv,744,
http://statistics.data.gov.uk/id/local-authority/12UE,Huntingdonshire District Council,07/04/2016,187076,BOOGIE 26.3.16,5,"1,606.48",Starlite Roadshow,CR024127,One Leisure St Ives,Entertainments Inc Cable Tv,744,
http://statistics.data.gov.uk/id/local-authority/12UE,Huntingdonshire District Council,07/04/2016,186504,8276,5,650,Starlite Roadshow,CR024127,One Leisure St Ives,Entertainments Inc Cable Tv,744,
http://statistics.data.gov.uk/id/local-authority/12UE,Huntingdonshire District Council,28/04/2016,188033,8279,5,280,Starlite Roadshow,CR024127,One Leisure St Ives,Entertainments Inc Cable Tv,744,
http://statistics.data.gov.uk/id/local-authority/12UE,Huntingdonshire District Council,28/04/2016,188018,3949,5,300,Abbey Stocktaking Services,CR405345,One Leisure St Ives,Stock Control,758,
http://statistics.data.gov.uk/id/local-authority/12UE,Huntingdonshire District Council,28/04/2016,188018,3949,5,60,Abbey Stocktaking Services,CR405345,One Leisure St Ives,Stock Control,758,
http://statistics.data.gov.uk/id/local-authority/12UE,Huntingdonshire District Council,28/04/2016,187919,SBO1037260,5,960.46,Veolia Es Uk Ltd,CR478889,One Leisure St Ives,Waste Disposal,763,
http://statistics.data.gov.uk/id/local-authority/12UE,Huntingdonshire District Council,07/04/2016,187167,1025026,5,"1,650.52",Taylor Made Designs,CR417271,One Leisure St Neots,Protective Clothing & Uniforms,163,
http://statistics.data.gov.uk/id/local-authority/12UE,Huntingdonshire District Council,28/04/2016,188010,16004417,5,"2,592.00",Technogym Uk Ltd,CR033037,One Leisure St Neots,Software,206,
http://statistics.data.gov.uk/id/local-authority/12UE,Huntingdonshire District Council,07/04/2016,186888,39161,5,292,Clanpress King'S Lynn Ltd,CR413516,One Leisure St Neots,Printing (External),220,
http://statistics.data.gov.uk/id/local-authority/12UE,Huntingdonshire District Council,07/04/2016,186793,13271,5,"1,440.00",Roi Software Distribution Ltd,CR422116,One Leisure St Neots,Printing (External),220,
http://statistics.data.gov.uk/id/local-authority/12UE,Huntingdonshire District Council,07/04/2016,186844,1230268258,5,12,Orange Airtime,CR455799,One Leisure St Neots,Telephone &Mobile Phonecharges,240,
http://statistics.data.gov.uk/id/local-authority/12UE,Huntingdonshire District Council,28/04/2016,188054,INV000503,5,60,Media Imaging Solutions,CR455674,One Leisure St Neots,Advertising/Promoting Services,255,
http://statistics.data.gov.uk/id/local-authority/12UE,Huntingdonshire District Council,07/04/2016,186783,1317,5,90,Talk Twenty 1,CR422876,One Leisure St Neots,Advertising/Promoting Services,255,
http://statistics.data.gov.uk/id/local-authority/12UE,Huntingdonshire District Council,07/04/2016,187212,1300,5,90,Talk Twenty 1,CR422876,One Leisure St Neots,Advertising/Promoting Services,255,
http://statistics.data.gov.uk/id/local-authority/12UE,Huntingdonshire District Council,07/04/2016,187147,35541,5,292.38,Caterfix Ltd,CR480775,One Leisure St Neots,Building Mtce,303,
http://statistics.data.gov.uk/id/local-authority/12UE,Huntingdonshire District Council,14/04/2016,187770,16-Dec,5,384,Jba Construction & Management Services,CR416716,One Leisure St Neots,Building Mtce,303,
http://statistics.data.gov.uk/id/local-authority/12UE,Huntingdonshire District Council,07/04/2016,187159,9300018,5,335.54,Njl Property Solutions,CR423380,One Leisure St Neots,Building Mtce,303,
http://statistics.data.gov.uk/id/local-authority/12UE,Huntingdonshire District Council,28/04/2016,188323,9572,5,888.78,Roger Wilson Electronics,CR028041,One Leisure St Neots,Building Mtce,303,
http://statistics.data.gov.uk/id/local-authority/12UE,Huntingdonshire District Council,07/04/2016,187119,9559,5,170.4,Roger Wilson Electronics,CR028041,One Leisure St Neots,Building Mtce,303,
http://statistics.data.gov.uk/id/local-authority/12UE,Huntingdonshire District Council,07/04/2016,187171,INV43252,5,928.32,Total Laminate Systems Ltd,CR478278,One Leisure St Neots,Building Mtce,303,
http://statistics.data.gov.uk/id/local-authority/12UE,Huntingdonshire District Council,07/04/2016,186523,S3076295,5,250.44,First In Service Ltd,CR422285,One Leisure St Neots,Plant & Equipment Maintenance,380,
http://statistics.data.gov.uk/id/local-authority/12UE,Huntingdonshire District Council,26/04/2016,188343,65914,5,"9,716.10",Haven Power Ltd,CR455940,One Leisure St Neots,Electricity,420,
http://statistics.data.gov.uk/id/local-authority/12UE,Huntingdonshire District Council,21/04/2016,187719,12489088380,5,"3,658.72",E-On Energy,CR416430,One Leisure St Neots,Gas,421,
http://statistics.data.gov.uk/id/local-authority/12UE,Huntingdonshire District Council,21/04/2016,187725,12489088540,5,284.06,E-On Energy,CR416430,One Leisure St Neots,Gas,421,
http://statistics.data.gov.uk/id/local-authority/12UE,Huntingdonshire District Council,07/04/2016,187295,4626,5,"1,307.12",Enterprise Support Services Uk Ltd,CR422509,One Leisure St Neots,Building Cleaning,440,
http://statistics.data.gov.uk/id/local-authority/12UE,Huntingdonshire District Council,07/04/2016,187106,55408,5,450.58,Maskearaid Ind Supplies,CR033423,One Leisure St Neots,Cleaning Materials,443,
http://statistics.data.gov.uk/id/local-authority/12UE,Huntingdonshire District Council,07/04/2016,186045,895863,5,603.93,Body Power Sports Plc,CR423405,One Leisure St Neots,Equipment,500,
http://statistics.data.gov.uk/id/local-authority/12UE,Huntingdonshire District Council,07/04/2016,187118,BD523950,5,100,Pitney Bowes Finance Plc,CR019747,One Leisure St Neots,Equipment,500,
http://statistics.data.gov.uk/id/local-authority/12UE,Huntingdonshire District Council,07/04/2016,187119,9559,5,84,Roger Wilson Electronics,CR028041,One Leisure St Neots,Equipment,500,
http://statistics.data.gov.uk/id/local-authority/12UE,Huntingdonshire District Council,28/04/2016,188039,16004451,5,"2,170.80",Technogym Uk Ltd,CR033037,One Leisure St Neots,Equipment,500,
http://statistics.data.gov.uk/id/local-authority/12UE,Huntingdonshire District Council,07/04/2016,187218,63535104,5,680.09,Phs Group Ltd,CR032018,One Leisure St Neots,Equipment Hire,507,
http://statistics.data.gov.uk/id/local-authority/12UE,Huntingdonshire District Council,07/04/2016,186774,80421,5,"2,206.63",Servicesport (Uk) Ltd,CR422867,One Leisure St Neots,Equipment Maintenance,511,
http://statistics.data.gov.uk/id/local-authority/12UE,Huntingdonshire District Council,07/04/2016,595908,28631,2,381.72,REDACTED PERSONAL DATA,CR479877,One Leisure St Neots,Materials,550,
http://statistics.data.gov.uk/id/local-authority/12UE,Huntingdonshire District Council,07/04/2016,187169,306287,5,76.47,South Lincs Food Service,CR033415,One Leisure St Neots,Bar Provisions,558,
http://statistics.data.gov.uk/id/local-authority/12UE,Huntingdonshire District Council,07/04/2016,187169,306287,5,187.49,South Lincs Food Service,CR033415,One Leisure St Neots,Catering Materials,559,
http://statistics.data.gov.uk/id/local-authority/12UE,Huntingdonshire District Council,07/04/2016,187161,SI-156678,5,299,Liquidline,CR455413,One Leisure St Neots,Vending Materials,560,
http://statistics.data.gov.uk/id/local-authority/12UE,Huntingdonshire District Council,07/04/2016,186396,66478,5,411.65,Snackline Direct Ltd,CR478090,One Leisure St Neots,Vending Materials,560,
http://statistics.data.gov.uk/id/local-authority/12UE,Huntingdonshire District Council,28/04/2016,187877,13871,5,435.24,Jade Security Services Ltd,CR422256,One Leisure St Neots,Cash Collection,702,
http://statistics.data.gov.uk/id/local-authority/12UE,Huntingdonshire District Council,14/04/2016,187785,2969088,5,272.81,Phonographic Performance Ltd,CR411659,One Leisure St Neots,Licences,730,
http://statistics.data.gov.uk/id/local-authority/12UE,Huntingdonshire District Council,07/04/2016,187227,UKA_PPL/97789,5,"5,637.60",Ukactive,CR003876,One Leisure St Neots,Licences,730,
http://statistics.data.gov.uk/id/local-authority/12UE,Huntingdonshire District Council,28/04/2016,187914,SBO1037262,5,357.96,Veolia Es Uk Ltd,CR478889,One Leisure St Neots,Waste Disposal,763,
http://statistics.data.gov.uk/id/local-authority/12UE,Huntingdonshire District Council,07/04/2016,187243,4000003509,5,455.99,1st Choice Recruitment,CR416849,Operations Mgt Units,Hired Staff,100,
http://statistics.data.gov.uk/id/local-authority/12UE,Huntingdonshire District Council,07/04/2016,187271,4000003526,5,369.72,1st Choice Recruitment,CR416849,Operations Mgt Units,Hired Staff,100,
http://statistics.data.gov.uk/id/local-authority/12UE,Huntingdonshire District Council,07/04/2016,187273,4000003525,5,343.1,1st Choice Recruitment,CR416849,Operations Mgt Units,Hired Staff,100,
http://statistics.data.gov.uk/id/local-authority/12UE,Huntingdonshire District Council,07/04/2016,187242,4000003493,5,259.08,1st Choice Recruitment,CR416849,Operations Mgt Units,Hired Staff,100,
http://statistics.data.gov.uk/id/local-authority/12UE,Huntingdonshire District Council,14/04/2016,187851,336309,5,439.2,Smi Group,CR423139,Operations Mgt Units,Protective Clothing & Uniforms,163,
http://statistics.data.gov.uk/id/local-authority/12UE,Huntingdonshire District Council,07/04/2016,187346,337396,5,364.32,Smi Group,CR423139,Operations Mgt Units,Protective Clothing & Uniforms,163,
http://statistics.data.gov.uk/id/local-authority/12UE,Huntingdonshire District Council,07/04/2016,186765,OP/I772730,5,"2,897.41",Phoenix Software Ltd,CR031918,Operations Mgt Units,Software,206,
http://statistics.data.gov.uk/id/local-authority/12UE,Huntingdonshire District Council,07/04/2016,187268,OP/I773547,5,413.92,Phoenix Software Ltd,CR031918,Operations Mgt Units,Software,206,
http://statistics.data.gov.uk/id/local-authority/12UE,Huntingdonshire District Council,07/04/2016,186844,1230268258,5,386.75,Orange Airtime,CR455799,Operations Mgt Units,Telephone &Mobile Phonecharges,240,
http://statistics.data.gov.uk/id/local-authority/12UE,Huntingdonshire District Council,07/04/2016,186826,21973,5,257.96,B. S. Graves Electrical Ltd,CR000363,Parks & Open Spaces,Building Mtce,303,
http://statistics.data.gov.uk/id/local-authority/12UE,Huntingdonshire District Council,07/04/2016,186845,INV187749,5,"2,382.00",Broxap Ltd,CR415958,Parks & Open Spaces,Building Mtce,303,
http://statistics.data.gov.uk/id/local-authority/12UE,Huntingdonshire District Council,21/04/2016,186694,JBC/27900/4663/,5,502.02,J Breheny Contractors Ltd,CR000314,Parks & Open Spaces,Sitework,359,
http://statistics.data.gov.uk/id/local-authority/12UE,Huntingdonshire District Council,07/04/2016,186322,16682,5,955.8,Soft Surfaces,CR415861,Parks & Open Spaces,Playground Equipment,360,
http://statistics.data.gov.uk/id/local-authority/12UE,Huntingdonshire District Council,07/04/2016,187265,581171804,5,556.89,Swalec,CR407130,Parks & Open Spaces,Electricity,420,
http://statistics.data.gov.uk/id/local-authority/12UE,Huntingdonshire District Council,07/04/2016,187392,CD200005104,5,129.16,Integrated Water Services Ltd,CR452140,Parks & Open Spaces,Water & Sewerage,432,
http://statistics.data.gov.uk/id/local-authority/12UE,Huntingdonshire District Council,07/04/2016,187392,CD200005104,5,32.89,Integrated Water Services Ltd,CR452140,Parks & Open Spaces,Water & Sewerage,432,
http://statistics.data.gov.uk/id/local-authority/12UE,Huntingdonshire District Council,07/04/2016,186722,19242,5,"3,792.00",Dal-Rod Uk Ltd,CR002782,Parks Equipment Capital,Playground Equipment,360,
http://statistics.data.gov.uk/id/local-authority/12UE,Huntingdonshire District Council,07/04/2016,186724,CHES250,5,"1,850.00",Hampton/Chesmetalwork,CR453817,Parks Equipment Capital,Playground Equipment,360,
http://statistics.data.gov.uk/id/local-authority/12UE,Huntingdonshire District Council,07/04/2016,186727,CHES253,5,300,Hampton/Chesmetalwork,CR453817,Parks Equipment Capital,Playground Equipment,360,
http://statistics.data.gov.uk/id/local-authority/12UE,Huntingdonshire District Council,07/04/2016,186321,16684,5,"1,332.00",Soft Surfaces,CR415861,Parks Equipment Capital,Playground Equipment,360,
http://statistics.data.gov.uk/id/local-authority/12UE,Huntingdonshire District Council,07/04/2016,186324,DU835734,5,"11,881.62",Wicksteed Leisure Ltd,CR028997,Parks Equipment Capital,Playground Equipment,360,
http://statistics.data.gov.uk/id/local-authority/12UE,Huntingdonshire District Council,07/04/2016,186323,DU835733,5,"8,470.21",Wicksteed Leisure Ltd,CR028997,Parks Equipment Capital,Playground Equipment,360,
http://statistics.data.gov.uk/id/local-authority/12UE,Huntingdonshire District Council,07/04/2016,186844,1230268258,5,9.6,Orange Airtime,CR455799,Pathfinder House Site,Telephone &Mobile Phonecharges,240,
http://statistics.data.gov.uk/id/local-authority/12UE,Huntingdonshire District Council,07/04/2016,185726,39923,5,624,Dal-Rod (Camridgeshire),CR413675,Pathfinder House Site,Building Mtce,303,
http://statistics.data.gov.uk/id/local-authority/12UE,Huntingdonshire District Council,28/04/2016,188472,217,5,327,Dms Home Improvements & Electrical,CR479202,Pathfinder House Site,Building Mtce,303,
http://statistics.data.gov.uk/id/local-authority/12UE,Huntingdonshire District Council,07/04/2016,187294,4627,5,"1,132.48",Enterprise Support Services Uk Ltd,CR422509,Pathfinder House Site,Building Mtce,303,
http://statistics.data.gov.uk/id/local-authority/12UE,Huntingdonshire District Council,28/04/2016,187356,26813,5,"3,663.00",Hygiene Solutions,CR477443,Pathfinder House Site,Building Mtce,303,
http://statistics.data.gov.uk/id/local-authority/12UE,Huntingdonshire District Council,07/04/2016,186808,27890/4663,5,"3,658.24",J Breheny Contractors Ltd,CR000314,Pathfinder House Site,Building Mtce,303,
http://statistics.data.gov.uk/id/local-authority/12UE,Huntingdonshire District Council,21/04/2016,187698,63703,5,880.8,Britannia Fire & Security Ltd,CR410090,Pathfinder House Site,Plant & Equipment Maintenance,380,
http://statistics.data.gov.uk/id/local-authority/12UE,Huntingdonshire District Council,21/04/2016,187699,63704,5,512.4,Britannia Fire & Security Ltd,CR410090,Pathfinder House Site,Plant & Equipment Maintenance,380,
http://statistics.data.gov.uk/id/local-authority/12UE,Huntingdonshire District Council,26/04/2016,188345,65912,5,"10,324.71",Haven Power Ltd,CR455940,Pathfinder House Site,Electricity,420,
http://statistics.data.gov.uk/id/local-authority/12UE,Huntingdonshire District Council,21/04/2016,187723,13313569100,5,"2,584.85",E-On Energy,CR416430,Pathfinder House Site,Gas,421,
http://statistics.data.gov.uk/id/local-authority/12UE,Huntingdonshire District Council,21/04/2016,188188,134364421,5,"1,307.57",Anglian Water,CR000071,Pathfinder House Site,Water & Sewerage,432,
http://statistics.data.gov.uk/id/local-authority/12UE,Huntingdonshire District Council,07/04/2016,187392,CD200005104,5,73.5,Integrated Water Services Ltd,CR452140,Pathfinder House Site,Water & Sewerage,432,
http://statistics.data.gov.uk/id/local-authority/12UE,Huntingdonshire District Council,07/04/2016,187295,4626,5,"3,296.90",Enterprise Support Services Uk Ltd,CR422509,Pathfinder House Site,Building Cleaning,440,
http://statistics.data.gov.uk/id/local-authority/12UE,Huntingdonshire District Council,07/04/2016,187123,55395,5,723.6,Maskearaid Ind Supplies,CR033423,Pathfinder House Site,Cleaning Materials,443,
http://statistics.data.gov.uk/id/local-authority/12UE,Huntingdonshire District Council,28/04/2016,187272,12539,5,"1,074.00",Innovations Visual Communication Systems Ltd,CR422257,Pathfinder House Site,Equipment,500,
http://statistics.data.gov.uk/id/local-authority/12UE,Huntingdonshire District Council,26/04/2016,187430,102038,5,675.75,Brookes,CR422866,Pathfinder House Site,Catering,710,
http://statistics.data.gov.uk/id/local-authority/12UE,Huntingdonshire District Council,07/04/2016,186801,5,5,"2,420.00",Tree Officer Outsourcing Uk Ltd,CR423131,Planning M U'S,Hired Staff,100,
http://statistics.data.gov.uk/id/local-authority/12UE,Huntingdonshire District Council,07/04/2016,186844,1230268258,5,156.72,Orange Airtime,CR455799,Planning M U'S,Telephone &Mobile Phonecharges,240,
http://statistics.data.gov.uk/id/local-authority/12UE,Huntingdonshire District Council,21/04/2016,596405,2849,1,"33,010.00",St Neots Town Council,CR002483,Priory Centre,Contribution (Paid Out),810,
http://statistics.data.gov.uk/id/local-authority/12UE,Huntingdonshire District Council,07/04/2016,187263,1111307395,5,"9,000.00",Deloitte Llp,CR400573,Project Contributions,Consultants,711,
http://statistics.data.gov.uk/id/local-authority/12UE,Huntingdonshire District Council,28/04/2016,188372,10665032,5,"4,590.00",Cambridgeshire County Council,CR006678,Project Contributions,Contribution (Paid Out),810,
http://statistics.data.gov.uk/id/local-authority/12UE,Huntingdonshire District Council,07/04/2016,186844,1230268258,5,18.01,Orange Airtime,CR455799,Property Development And Mgt,Telephone &Mobile Phonecharges,240,
http://statistics.data.gov.uk/id/local-authority/12UE,Huntingdonshire District Council,21/04/2016,186693,JBC/27902/4663/,5,"3,163.66",J Breheny Contractors Ltd,CR000314,Property Development And Mgt,Building Mtce,303,
http://statistics.data.gov.uk/id/local-authority/12UE,Huntingdonshire District Council,07/04/2016,187338,JBC/27943/4663/,5,"2,131.27",J Breheny Contractors Ltd,CR000314,Property Development And Mgt,Consultants,711,
http://statistics.data.gov.uk/id/local-authority/12UE,Huntingdonshire District Council,07/04/2016,187283,40408,5,326.4,Dal-Rod (Camridgeshire),CR413675,Public Conveniences,Building Mtce,303,
http://statistics.data.gov.uk/id/local-authority/12UE,Huntingdonshire District Council,28/04/2016,187997,548475,5,"1,141.82",Ecocleen Services Limited,CR406985,Public Conveniences,Building Cleaning,440,
http://statistics.data.gov.uk/id/local-authority/12UE,Huntingdonshire District Council,28/04/2016,187995,548481,5,731.68,Ecocleen Services Limited,CR406985,Public Conveniences,Building Cleaning,440,
http://statistics.data.gov.uk/id/local-authority/12UE,Huntingdonshire District Council,07/04/2016,186844,1230268258,5,16.8,Orange Airtime,CR455799,Ramsey Neighbourhood,Telephone &Mobile Phonecharges,240,
http://statistics.data.gov.uk/id/local-authority/12UE,Huntingdonshire District Council,07/04/2016,187256,IN0504927,5,"2,581.85",Staffline Group,CR416827,Recycling,Hired Staff,100,
http://statistics.data.gov.uk/id/local-authority/12UE,Huntingdonshire District Council,28/04/2016,187962,IN0508059,5,"2,389.56",Staffline Group,CR416827,Recycling,Hired Staff,100,
http://statistics.data.gov.uk/id/local-authority/12UE,Huntingdonshire District Council,07/04/2016,187251,IN0506068,5,"1,803.65",Staffline Group,CR416827,Recycling,Hired Staff,100,
http://statistics.data.gov.uk/id/local-authority/12UE,Huntingdonshire District Council,07/04/2016,186708,IN0503569,5,"1,101.10",Staffline Group,CR416827,Recycling,Hired Staff,100,
http://statistics.data.gov.uk/id/local-authority/12UE,Huntingdonshire District Council,07/04/2016,187321,SINV-093331,5,"1,522.56",Gelpack Excelsior Limited,CR002966,Recycling,Refuse Sacks,552,
http://statistics.data.gov.uk/id/local-authority/12UE,Huntingdonshire District Council,07/04/2016,187309,DE10937633,5,"2,442.96",Dennis Eagle Ltd,CR000200,Recycling,Vehicle Parts & Fittings,625,
http://statistics.data.gov.uk/id/local-authority/12UE,Huntingdonshire District Council,21/04/2016,188121,DE10940461,5,"1,460.54",Dennis Eagle Ltd,CR000200,Recycling,Vehicle Parts & Fittings,625,
http://statistics.data.gov.uk/id/local-authority/12UE,Huntingdonshire District Council,07/04/2016,187308,DE10937338,5,540.35,Dennis Eagle Ltd,CR000200,Recycling,Vehicle Parts & Fittings,625,
http://statistics.data.gov.uk/id/local-authority/12UE,Huntingdonshire District Council,07/04/2016,187313,DE10937632,5,453.04,Dennis Eagle Ltd,CR000200,Recycling,Vehicle Parts & Fittings,625,
http://statistics.data.gov.uk/id/local-authority/12UE,Huntingdonshire District Council,28/04/2016,187747,96324819,5,154.01,Terberg Matec Uk Ltd,CR402183,Recycling,Vehicle Parts & Fittings,625,
http://statistics.data.gov.uk/id/local-authority/12UE,Huntingdonshire District Council,14/04/2016,187759,36984,5,88.82,Trinity Engineering & Component Supplies Ltd,CR455479,Recycling,Vehicle Parts & Fittings,625,
http://statistics.data.gov.uk/id/local-authority/12UE,Huntingdonshire District Council,14/04/2016,187757,36983,5,61.62,Trinity Engineering & Component Supplies Ltd,CR455479,Recycling,Vehicle Parts & Fittings,625,
http://statistics.data.gov.uk/id/local-authority/12UE,Huntingdonshire District Council,07/04/2016,186811,264360I,5,110.46,A C Commercials,CR000141,Recycling,Vehicle Oil & Lubricants,626,
http://statistics.data.gov.uk/id/local-authority/12UE,Huntingdonshire District Council,07/04/2016,186840,183608,5,126,Barton Petroleum,CR409205,Recycling,Vehicle Oil & Lubricants,626,
http://statistics.data.gov.uk/id/local-authority/12UE,Huntingdonshire District Council,07/04/2016,187274,85923,5,"1,025.63",Bandvulc Truck Tyres,CR406810,Recycling,Tyres,630,
http://statistics.data.gov.uk/id/local-authority/12UE,Huntingdonshire District Council,28/04/2016,188115,86909,5,438.78,Bandvulc Truck Tyres,CR406810,Recycling,Tyres,630,
http://statistics.data.gov.uk/id/local-authority/12UE,Huntingdonshire District Council,14/04/2016,187735,33152,5,90.72,Magnum Tyres Ltd,CR479195,Recycling,Tyres,630,
http://statistics.data.gov.uk/id/local-authority/12UE,Huntingdonshire District Council,07/04/2016,187236,SI28201,5,"32,764.32",Ssi Schaefer Ltd,CR407190,Recycling Equipment Capital,Recycling Bins,525,
http://statistics.data.gov.uk/id/local-authority/12UE,Huntingdonshire District Council,21/04/2016,187951,RELOCATIONGRANT,5,"4,616.23",REDACTED PERSONAL DATA,CR423471,Renovation/Improvement Grants,Grants (Paid Out),800,
http://statistics.data.gov.uk/id/local-authority/12UE,Huntingdonshire District Council,07/04/2016,186844,1230268258,5,12,Orange Airtime,CR455799,Revenue Services Mus,Telephone &Mobile Phonecharges,240,
http://statistics.data.gov.uk/id/local-authority/12UE,Huntingdonshire District Council,28/04/2016,187711,654485,5,189.6,Callcredit Ltd,CR455548,Revenue Services Mus,Enquiries,723,
http://statistics.data.gov.uk/id/local-authority/12UE,Huntingdonshire District Council,07/04/2016,595897,60993296,6,"1,000.00",Tameside Metropolitan Borough Council,CR401786,Revenue Services Mus,Corporate Subscriptions,754,
http://statistics.data.gov.uk/id/local-authority/12UE,Huntingdonshire District Council,07/04/2016,187366,IN0504930,5,849.37,Staffline Group,CR416827,Street Cleaning,Hired Staff,100,
http://statistics.data.gov.uk/id/local-authority/12UE,Huntingdonshire District Council,07/04/2016,186719,IN0503572,5,762.97,Staffline Group,CR416827,Street Cleaning,Hired Staff,100,
http://statistics.data.gov.uk/id/local-authority/12UE,Huntingdonshire District Council,07/04/2016,187365,IN0506072,5,688.68,Staffline Group,CR416827,Street Cleaning,Hired Staff,100,
http://statistics.data.gov.uk/id/local-authority/12UE,Huntingdonshire District Council,28/04/2016,187961,IN0508062,5,677.21,Staffline Group,CR416827,Street Cleaning,Hired Staff,100,
http://statistics.data.gov.uk/id/local-authority/12UE,Huntingdonshire District Council,07/04/2016,186844,1230268258,5,2.4,Orange Airtime,CR455799,Street Cleaning,Telephone &Mobile Phonecharges,240,
http://statistics.data.gov.uk/id/local-authority/12UE,Huntingdonshire District Council,07/04/2016,186716,917236,5,362.5,Hire Or Buy Group Ltd,CR000707,Street Cleaning,Equipment,500,
http://statistics.data.gov.uk/id/local-authority/12UE,Huntingdonshire District Council,07/04/2016,187320,SINV-093721,5,"1,470.60",Gelpack Excelsior Limited,CR002966,Street Cleaning,Refuse Sacks,552,
http://statistics.data.gov.uk/id/local-authority/12UE,Huntingdonshire District Council,21/04/2016,188036,60280,5,"2,815.20",Dawsonrentals Sweepers,CR416605,Street Cleaning,Vehicle Hire,607,
http://statistics.data.gov.uk/id/local-authority/12UE,Huntingdonshire District Council,28/04/2016,188118,60673,5,514.8,Dawsonrentals Sweepers,CR416605,Street Cleaning,Vehicle Hire,607,
http://statistics.data.gov.uk/id/local-authority/12UE,Huntingdonshire District Council,07/04/2016,187373,10685326,5,594,Shb Hire Ltd,CR416566,Street Cleaning,Vehicle Hire,607,
http://statistics.data.gov.uk/id/local-authority/12UE,Huntingdonshire District Council,07/04/2016,186309,83429,5,302.4,Frank Ratcliffe & Son,CR007546,Street Cleaning,Vehicle Maintenance External,619,
http://statistics.data.gov.uk/id/local-authority/12UE,Huntingdonshire District Council,21/04/2016,188114,60215338,5,606.82,Aebi Schmidt,CR025706,Street Cleaning,Vehicle Parts & Fittings,625,
http://statistics.data.gov.uk/id/local-authority/12UE,Huntingdonshire District Council,28/04/2016,188113,60215462,5,540.19,Aebi Schmidt,CR025706,Street Cleaning,Vehicle Parts & Fittings,625,
http://statistics.data.gov.uk/id/local-authority/12UE,Huntingdonshire District Council,07/04/2016,187371,80037892,5,390,Chassis-Cab Ltd,CR422248,Street Cleaning,Vehicle Parts & Fittings,625,
http://statistics.data.gov.uk/id/local-authority/12UE,Huntingdonshire District Council,07/04/2016,186829,61365902,5,681.89,Johnston Engineering Ltd,CR029831,Street Cleaning,Vehicle Parts & Fittings,625,
http://statistics.data.gov.uk/id/local-authority/12UE,Huntingdonshire District Council,07/04/2016,186830,61365516,5,551.76,Johnston Engineering Ltd,CR029831,Street Cleaning,Vehicle Parts & Fittings,625,
http://statistics.data.gov.uk/id/local-authority/12UE,Huntingdonshire District Council,28/04/2016,188422,61371972,5,268.2,Johnston Engineering Ltd,CR029831,Street Cleaning,Vehicle Parts & Fittings,625,
http://statistics.data.gov.uk/id/local-authority/12UE,Huntingdonshire District Council,28/04/2016,187739,23668,5,"5,781.91",M & N Vehicle Services,CR480661,Street Cleaning,Vehicle Parts & Fittings,625,
http://statistics.data.gov.uk/id/local-authority/12UE,Huntingdonshire District Council,14/04/2016,187759,36984,5,111.01,Trinity Engineering & Component Supplies Ltd,CR455479,Street Cleaning,Vehicle Parts & Fittings,625,
http://statistics.data.gov.uk/id/local-authority/12UE,Huntingdonshire District Council,14/04/2016,187757,36983,5,77.17,Trinity Engineering & Component Supplies Ltd,CR455479,Street Cleaning,Vehicle Parts & Fittings,625,
http://statistics.data.gov.uk/id/local-authority/12UE,Huntingdonshire District Council,07/04/2016,187374,16140,5,270,Ian'S Tyre & Exhaust Centre,CR405836,Street Cleaning,Tyres,630,
http://statistics.data.gov.uk/id/local-authority/12UE,Huntingdonshire District Council,07/04/2016,186735,IN16PS16001694,5,44.28,Whistl Uk Ltd,CR479965,Trade Refuse,Postage,231,
http://statistics.data.gov.uk/id/local-authority/12UE,Huntingdonshire District Council,07/04/2016,186335,IN16PS16001407,5,126.57,Whistl Uk Ltd,CR479965,Trade Refuse,Postage,231,
http://statistics.data.gov.uk/id/local-authority/12UE,Huntingdonshire District Council,07/04/2016,186443,77606,5,956.4,Crowders Nurseries,CR411361,Trees,Trees/Shrubs,555,
http://statistics.data.gov.uk/id/local-authority/12UE,Huntingdonshire District Council,07/04/2016,186747,132107,5,"1,650.00",Green-Tech,CR401735,Trees,Trees/Shrubs,555,
http://statistics.data.gov.uk/id/local-authority/12UE,Huntingdonshire District Council,07/04/2016,186797,780275,5,"39,600.00",Ernest Doe & Sons,CR000261,Vehicles & Plant Capital,Vehicles Purchased,600,
http://statistics.data.gov.uk/id/local-authority/12UE,Huntingdonshire District Council,07/04/2016,186294,6353,5,636,Lattenbury Services,CR406847,Watercourses,Sitework,359,
http://statistics.data.gov.uk/id/local-authority/12UE,Huntingdonshire District Council,07/04/2016,186294,6353,5,"2,136.00",Lattenbury Services,CR406847,Watercourses,Sitework,359,
http://statistics.data.gov.uk/id/local-authority/12UE,Huntingdonshire District Council,07/04/2016,186293,6352,5,"1,176.00",Lattenbury Services,CR406847,Watercourses,Sitework,359,
